Body Name,Service Division Label,Service Division Code,Organisational Unit,Expenditure Category,Expenditure Code,CIPFA detailed expediture type,CIPFA detailed expediture code,Narrative,Date,Transaction number,Net Amount,Capital and Revenue,Supplier Name,
South Ribble Borough Council,http://statistics.data.gov.uk/id/local-authority/30UE,Capital,,Area 3 - Parks/Leyland East West,Cap Contract Payment,C230,Capital Other Land & Bldgs,"LABOUR - Improvement works to the overflow car park at Worden Park, Leyland",27/01/2021,0000461415,"2,800.00",Revenue,A & G Landscapes & Groundworks LTD,0
South Ribble Borough Council,http://statistics.data.gov.uk/id/local-authority/30UE,Capital,,Area 3 - Parks/Leyland East West,Cap Contract Payment,C230,Capital Other Land & Bldgs,MATERIALS,27/01/2021,0000461415,"12,214.43",Revenue,A & G Landscapes & Groundworks LTD,0
South Ribble Borough Council,http://statistics.data.gov.uk/id/local-authority/30UE,Central Support Services,,Area 2 - Waste Transport/Eastern & Central Teams,Materials General,4040,Furniture- Equip & Materials,BRAKE CALIPER - VO65KPX - JFC15986,20/01/2021,0000462190,348.00,Revenue,AA UK CV t/a Hydrair Truck & Trailer,0
South Ribble Borough Council,http://statistics.data.gov.uk/id/local-authority/30UE,Central Support Services,,Property Services,Reactive Repair & Maintenance,2020,Premises Repair & Mtne,Please provide skip as per NAME REDACTED for the Civic Centre,20/01/2021,0000461980,275.00,Revenue,ABLE SKIP HIRE LTD,0
South Ribble Borough Council,http://statistics.data.gov.uk/id/local-authority/30UE,Community Safety Services,,Area 1 - Penwortham Western Parishes,Maintenance & Repair,4013,Furniture- Equip & Materials,1 camera and recorder at ADDRESS REDACTED as per your enquiry number 0013915204,22/01/2021,0000461992,"3,825.25",Revenue,ADT FIRE & SECURITY PLC,0
South Ribble Borough Council,http://statistics.data.gov.uk/id/local-authority/30UE,Central Support Services,,HR & Communications,Legal Fees,4513,Services,PROFESSIONAL SERVICES IN RELATION TO A SETTLEMENT AGREEMENT FOR NAME REDACTED,29/01/2021,0000462024,350.00,Revenue,AFG LAW LTD,0
South Ribble Borough Council,http://statistics.data.gov.uk/id/local-authority/30UE,Central Support Services,,Information Services,Network and Security,4247,Communications & Comuting,"Renewal of Veritas product(s) Nov 2020 & Jan 2021, as per quote ref. 514777",13/01/2021,0000461710,"1,464.00",Revenue,Aindale Business and Technology,0
South Ribble Borough Council,http://statistics.data.gov.uk/id/local-authority/30UE,Capital,,Regeneration,Cap Contract Payment,C230,Capital Other Land & Bldgs,Planting in shruggs wood and relocation of Fence as agreed with Regeneration dept.,29/01/2021,0000462449,"8,900.00",Revenue,ALBEN LANDSCAPES,0
South Ribble Borough Council,http://statistics.data.gov.uk/id/local-authority/30UE,Capital,,Regeneration,Cap Contract Payment,C230,Capital Other Land & Bldgs,For the provision of Archaeological services for Worden refurbishment,15/01/2021,0000462168,"1,680.00",Revenue,Archaeological Research Services Ltd,0
South Ribble Borough Council,http://statistics.data.gov.uk/id/local-authority/30UE,Corporate Management,,Property Services,Contract Hire,3216,Contract Hire & Operating Leas,Repair damage of vehicle hired - SA20FWM as per NAME REDACTED and assessment number ACM07445,15/01/2021,0000462095,398.04,Revenue,ARNOLD CLARK CAR & VAN RENTAL,0
South Ribble Borough Council,http://statistics.data.gov.uk/id/local-authority/30UE,Recycling,,Area 2 - Waste Transport/Eastern & Central Teams,Publicity & Promotion,4842,Miscellaneous Expenses,To Hire DRTL Luton Van with Tail Lift 4th January (delivery by 9.00am) to 15 January 2021 (collection between 14.30 and 15.30),22/01/2021,0000462274,402.38,Revenue,ARNOLD CLARK CAR & VAN RENTAL,0
South Ribble Borough Council,http://statistics.data.gov.uk/id/local-authority/30UE,Capital,,Housing,Cap Contract Payment,C230,Capital Other Land & Bldgs,"Conversion works and create 9 self contained flats as tendered at Pearson House, Bamber Bridge, to commence 1st June 2020",13/01/2021,0000461519,"24,500.00",Revenue,ASH BARN CONSTRUCTION LTD,0
South Ribble Borough Council,http://statistics.data.gov.uk/id/local-authority/30UE,Capital,,Housing,Capital Grant,C570,Deferrd Chgs-Improvemnt Grants,DISREPAIR WORKS AT ADDRESS REDACTED AS PER QUOTE SUPPLIED OF 8241.60. 50% GRANT APPLICABLE ,20/01/2021,0000461520,"3,434.00",Revenue,ASH BARN CONSTRUCTION LTD,0
South Ribble Borough Council,http://statistics.data.gov.uk/id/local-authority/30UE,Central Support Services,,HR & Communications,Short Course,1402,Training Expenses,AEA ANNUAL CONFERENCE 2021 ATTENDEES: NAMES REDACTED,15/01/2021,0000462104,625.00,Revenue,ASSOC OF ELECTORAL ADMINISTRATORS LTD,0
South Ribble Borough Council,http://statistics.data.gov.uk/id/local-authority/30UE,Community Development,,Neighbourhood Admin & Support,Publicity & Promotion,4842,Miscellaneous Expenses,Winter Warmth Booklets 2020,27/01/2021,0000462035,529.00,Revenue,B & D PRINT SERVICES LTD,0
South Ribble Borough Council,http://statistics.data.gov.uk/id/local-authority/30UE,Central Support Services,,Area 2 - Waste Transport/Eastern & Central Teams,Materials General,4040,Furniture- Equip & Materials,1 jockey wheel TRA04A3 JFC14786,13/01/2021,0000461938,56.00,Revenue,BARLOW TRAILERS LTD,0
South Ribble Borough Council,http://statistics.data.gov.uk/id/local-authority/30UE,Central Support Services,,Area 2 - Waste Transport/Eastern & Central Teams,Materials General,4040,Furniture- Equip & Materials,2 floor boards TRA04A3 JFC14786,13/01/2021,0000461938,218.00,Revenue,BARLOW TRAILERS LTD,0
South Ribble Borough Council,http://statistics.data.gov.uk/id/local-authority/30UE,Central Support Services,,Area 2 - Waste Transport/Eastern & Central Teams,Materials General,4040,Furniture- Equip & Materials,hand brake kit TRA04A3 JFC14786,13/01/2021,0000461938,54.00,Revenue,BARLOW TRAILERS LTD,0
South Ribble Borough Council,http://statistics.data.gov.uk/id/local-authority/30UE,Short Term Creditors,,Revenues Plus,Manual Control,0001,Balance Sheet,,22/01/2021,0000462217,"4,930.00",Revenue,BDW Trading Limited T/a Barratt Homes,0
South Ribble Borough Council,http://statistics.data.gov.uk/id/local-authority/30UE,Surplus or Deficit on Trading,,Property Services,Reactive Repair & Maintenance,2020,Premises Repair & Mtne,"Hutton Pavilion - 3 x LED floods, 2 x PIR, 2 x single pole, contractors, Electronic timer, connection box as per NAME REDACTED",15/01/2021,0000462046,545.20,Revenue,BELEC ELECTRICAL LTD,0
South Ribble Borough Council,http://statistics.data.gov.uk/id/local-authority/30UE,Corporate Management,,Property Services,Improvements to Premises,2023,Premises Repair & Mtne,Please undertake electrical renovation works to the CAB office as detailed in your quotation SRBC 19/Quote,15/01/2021,0000462174,"2,187.50",Revenue,BELEC ELECTRICAL LTD,0
South Ribble Borough Council,http://statistics.data.gov.uk/id/local-authority/30UE,Surplus or Deficit on Trading,,Property Services,Reactive Repair & Maintenance,2020,Premises Repair & Mtne,Extra order to cover the remainder of the sports pavilions to include remedial works  for 2020/2021,27/01/2021,0000462312,260.00,Revenue,BELEC ELECTRICAL LTD,0
South Ribble Borough Council,http://statistics.data.gov.uk/id/local-authority/30UE,Recreation & Sport,,Healthy Communities,Materials General,4040,Furniture- Equip & Materials,Various Sports Equipment for Active Schools Programme 521.95 + VAT,13/01/2021,0000461971,543.70,Revenue,Bishop Sports & Leisure Ltd,0
South Ribble Borough Council,http://statistics.data.gov.uk/id/local-authority/30UE,Central Support Services,,Area 2 - Waste Transport/Eastern & Central Teams,Materials General,4040,Furniture- Equip & Materials,1 brush motor & 1 suction box plate GX19 DZF JFC15535,22/01/2021,0000461950,441.32,Revenue,Bucher Municipal Ltd,0
South Ribble Borough Council,http://statistics.data.gov.uk/id/local-authority/30UE,Central Support Services,,HR & Communications,Short Course,1402,Training Expenses,"NAME REDACTED TO ATTEND `WATER SAMPLING` COURSE ON 23 & 24 NOVEMBER 2020 AT MALHAM, NORTH YORKS",06/01/2021,0000461182,495.00,Revenue,CATG Ltd,0
South Ribble Borough Council,http://statistics.data.gov.uk/id/local-authority/30UE,Central Support Services,,Environmental Health,Training Expenses,1400,Training Expenses,"2 Day FAW requalification 6th and 7th Feb - per NAME REDACTED, Attendees - NAMES REDACTED",29/01/2021,0000462438,280.00,Revenue,Centaur Training Services (North West) Ltd,0
South Ribble Borough Council,http://statistics.data.gov.uk/id/local-authority/30UE,Central Support Services,,Information Services,Business Continuity,4245,Communications & Comuting,Call out to generator starting fault.,15/01/2021,0000462089,318.60,Revenue,Central Power Services ltd,0
South Ribble Borough Council,http://statistics.data.gov.uk/id/local-authority/30UE,Central Support Services,,Information Services,Business Continuity,4245,Communications & Comuting,"Call out to fault on generator. Attended site and fitted new fuel pump and filter, and connector hoses.  Fixed Charge 628.70",15/01/2021,0000462090,628.70,Revenue,Central Power Services ltd,0
South Ribble Borough Council,http://statistics.data.gov.uk/id/local-authority/30UE,Homelessness,,Homelessness,Contributions to Other Bodies,4730,Grants & Subscriptions,Cotswold House placement for NAME REDACTED +2 wef 11.12.2020 270.44/week w/c 11.12.2020,27/01/2021,0000461958,270.41,Revenue,CHORLEY BOROUGH COUNCIL,0
South Ribble Borough Council,http://statistics.data.gov.uk/id/local-authority/30UE,Homelessness,,Homelessness,Contributions to Other Bodies,4730,Grants & Subscriptions,Cotswold House placement NAME REDACTED+2 cont w/c 18.12.2020,27/01/2021,0000461958,270.41,Revenue,CHORLEY BOROUGH COUNCIL,0
South Ribble Borough Council,http://statistics.data.gov.uk/id/local-authority/30UE,Homelessness,,Homelessness,Contributions to Other Bodies,4730,Grants & Subscriptions,Cotswold House placement NAME REDACTED+2 cont w/c 25.12.2020,27/01/2021,0000461958,270.41,Revenue,CHORLEY BOROUGH COUNCIL,0
South Ribble Borough Council,http://statistics.data.gov.uk/id/local-authority/30UE,Regulatory Services,,Environmental Health,Operational Equip & Tools,4010,Furniture- Equip & Materials,As per quote 35684 -1 non modem version CK675B per NAME REDACTED,15/01/2021,0000461701,"1,770.00",Revenue,CIRRUS RESEARCH PLC,0
South Ribble Borough Council,http://statistics.data.gov.uk/id/local-authority/30UE,General Grants Bequests & Dona,,Regeneration,Contributions to Other Bodies,4730,Grants & Subscriptions,"Instalment  2  15,000",15/01/2021,0000461078,"15,000.00",Revenue,Citizens Advice Lancashire,0
South Ribble Borough Council,http://statistics.data.gov.uk/id/local-authority/30UE,Economic Development,,Regeneration,Miscellaneous Expenses,4851,Miscellaneous Expenses,Delivery of phase 1 Leyland Christmas lights as agreed with SRBC Regeneration dept.,13/01/2021,0000461408,"13,420.00",Revenue,City Illuiminations Ltd,0
South Ribble Borough Council,http://statistics.data.gov.uk/id/local-authority/30UE,Economic Development,,Regeneration,Miscellaneous Expenses,4851,Miscellaneous Expenses,Delivery of phase 1 Leyland Christmas lights as agreed with SRBC Regeneration dept.,22/01/2021,0000462329,"3,600.00",Revenue,City Illuiminations Ltd,0
South Ribble Borough Council,http://statistics.data.gov.uk/id/local-authority/30UE,Culture & Heritage,,Development Enterprise & Comm Mgnt,Publicity & Promotion,4842,Miscellaneous Expenses,Class Prism Case Showcase Customer Case Ref:  PRISM SC-1 Your Ref:   E - 12575 Cost: 3324 Case to be delivered by 31-3-20,22/01/2021,0000460010,"1,495.80",Revenue,CLICK NETHERFIELD LTD,0
South Ribble Borough Council,http://statistics.data.gov.uk/id/local-authority/30UE,Community Development,,Regeneration,Core Fund,4861,Miscellaneous Expenses,50 Winter Warmth packs for the ones in need in the Moss Side area,29/01/2021,0000462445,589.00,Revenue,Community Network and Outreach,0
South Ribble Borough Council,http://statistics.data.gov.uk/id/local-authority/30UE,Central Support Services,,Information Services,Computer Equipment,4241,Communications & Comuting,"1 x Headphones 14.99, 5 x Webcam 19.77ea, 6 x USB-C Headphone adaptor 7.69ea, 12 x Lightning to USB 10.95ea",06/01/2021,0000461721,279.38,Revenue,CPC Re: COMBINED PRECISION COMPONENTS PLC,0
South Ribble Borough Council,http://statistics.data.gov.uk/id/local-authority/30UE,Central Support Services,,Information Services,Computer Equipment,4241,Communications & Comuting,6 x Aspire 3 laptops @ 319.00 each,22/01/2021,0000462363,"1,914.00",Revenue,CPC Re: COMBINED PRECISION COMPONENTS PLC,0
South Ribble Borough Council,http://statistics.data.gov.uk/id/local-authority/30UE,Local Tax Collection,,Revenues Plus,Postage General,4291,Communications & Comuting,Postage October to March 2021,08/01/2021,0000461716,359.02,Revenue,CRITIQOM,0
South Ribble Borough Council,http://statistics.data.gov.uk/id/local-authority/30UE,Local Tax Collection,,Revenues Plus,Postage General,4291,Communications & Comuting,Postage October to March 2021,15/01/2021,0000462081,375.79,Revenue,CRITIQOM,0
South Ribble Borough Council,http://statistics.data.gov.uk/id/local-authority/30UE,Local Tax Collection,,Revenues Plus,Postage General,4291,Communications & Comuting,Postage October to March 2021,22/01/2021,0000462244,462.09,Revenue,CRITIQOM,0
South Ribble Borough Council,http://statistics.data.gov.uk/id/local-authority/30UE,Local Tax Collection,,Revenues Plus,Postage General,4291,Communications & Comuting,Postage October to March 2021,27/01/2021,0000462462,409.45,Revenue,CRITIQOM,0
South Ribble Borough Council,http://statistics.data.gov.uk/id/local-authority/30UE,Central Support Services,,Legal,Legal,4821,Miscellaneous Expenses,PROFESSIONAL SERVICES IN RELATION TO AN EMPLOYMENT TRIBUNAL MATTER.,13/01/2021,0000462022,"1,029.60",Revenue,DAC BEACHCROFT LLP,0
South Ribble Borough Council,http://statistics.data.gov.uk/id/local-authority/30UE,Central Support Services,,Property Services,Reactive Repair & Maintenance,2020,Premises Repair & Mtne,"maintenance 2020/2021 of McSmart 240cr Industrial Water Chiller & McQuay Air Handling Unit  as per  Schedule 1, Schedule2, ",13/01/2021,0000461952,653.25,Revenue,DAIKIN APPLIED SERVICE,0
South Ribble Borough Council,http://statistics.data.gov.uk/id/local-authority/30UE,Open Spaces,,Area 3 - Parks/Leyland East West,GM Refurbishment,4657,Expenses,For work to mound slide steps to cut back existing wet pour where req and replace with a ramp down to take away the trip hazard.,06/01/2021,0000460920,850.00,Revenue,DCM Projects Ltd,0
South Ribble Borough Council,http://statistics.data.gov.uk/id/local-authority/30UE,Open Spaces,,Area 3 - Parks/Leyland East West,GM Refurbishment,4657,Expenses,10x bags of black EPDM with binder,06/01/2021,0000461077,260.00,Revenue,DCM Projects Ltd,0
South Ribble Borough Council,http://statistics.data.gov.uk/id/local-authority/30UE,Open Spaces,,Area 3 - Parks/Leyland East West,GM Refurbishment,4657,Expenses,10x bags of black EPDM with binder,06/01/2021,0000461077,260.00,Revenue,DCM Projects Ltd,0
South Ribble Borough Council,http://statistics.data.gov.uk/id/local-authority/30UE,Open Spaces,,Area 3 - Parks/Leyland East West,GM Refurbishment,4657,Expenses,10x bags of black EPDM with binder,06/01/2021,0000461077,260.00,Revenue,DCM Projects Ltd,0
South Ribble Borough Council,http://statistics.data.gov.uk/id/local-authority/30UE,Central Support Services,,Area 2 - Waste Transport/Eastern & Central Teams,Materials General,4040,Furniture- Equip & Materials,1 x thermostat VU58JXK JFC15950,08/01/2021,0000461749,191.39,Revenue,DENNIS EAGLE LTD,0
South Ribble Borough Council,http://statistics.data.gov.uk/id/local-authority/30UE,Central Support Services,,Area 2 - Waste Transport/Eastern & Central Teams,Materials General,4040,Furniture- Equip & Materials,1 x cooling hose 1 x heater valve VO65KRD JFC15936,08/01/2021,0000461749,157.49,Revenue,DENNIS EAGLE LTD,0
South Ribble Borough Council,http://statistics.data.gov.uk/id/local-authority/30UE,Central Support Services,,Area 2 - Waste Transport/Eastern & Central Teams,Materials General,4040,Furniture- Equip & Materials,1 x wiper motor VO65 KRD JFC15936,08/01/2021,0000461750,265.00,Revenue,DENNIS EAGLE LTD,0
South Ribble Borough Council,http://statistics.data.gov.uk/id/local-authority/30UE,Central Support Services,,Area 2 - Waste Transport/Eastern & Central Teams,Materials General,4040,Furniture- Equip & Materials,6 x slide blocks - 1001912 2 x slide blocks- 1006290 VO65KRE JFC15940,08/01/2021,0000461750,341.62,Revenue,DENNIS EAGLE LTD,0
South Ribble Borough Council,http://statistics.data.gov.uk/id/local-authority/30UE,Central Support Services,,Area 2 - Waste Transport/Eastern & Central Teams,Materials General,4040,Furniture- Equip & Materials,1 x wiper motor VO65KPZ JFC 16016,20/01/2021,0000462216,265.00,Revenue,DENNIS EAGLE LTD,0
South Ribble Borough Council,http://statistics.data.gov.uk/id/local-authority/30UE,Central Support Services,,Area 2 - Waste Transport/Eastern & Central Teams,Materials General,4040,Furniture- Equip & Materials,"1 wiper motor, 1 door latch  &2 wiper blades   VO65 KRF JFC16027",22/01/2021,0000462279,537.10,Revenue,DENNIS EAGLE LTD,0
South Ribble Borough Council,http://statistics.data.gov.uk/id/local-authority/30UE,Central Support Services,,HR & Communications,Disclosure Barring,4522,Services,DBS CHECKS - OCTOBER 2020 - 2021,13/01/2021,0000461840,320.00,Revenue,DISCLOSURE & BARRING SERVICE (CRB),0
South Ribble Borough Council,http://statistics.data.gov.uk/id/local-authority/30UE,Central Support Services,,Regeneration,Miscellaneous Expenses,4851,Miscellaneous Expenses,Retention fee for works on Penwortham Holme Recreation Centre for drainage works. Invoice 4078. Original order completed in error.,13/01/2021,0000462016,"6,180.34",Revenue,DUNCAN ROSS LIMITED,0
South Ribble Borough Council,http://statistics.data.gov.uk/id/local-authority/30UE,Central Support Services,,Regeneration,Miscellaneous Expenses,4851,Miscellaneous Expenses,Release of Retention works,22/01/2021,0000462242,"6,908.78",Revenue,DUNCAN ROSS LIMITED,0
South Ribble Borough Council,http://statistics.data.gov.uk/id/local-authority/30UE,Central Support Services,,Property Services,Reactive Repair & Maintenance,2020,Premises Repair & Mtne,"Annual Contract for the maintenance of the Lift  2020/2021 at Civic Centre, West Paddock, Leyland",15/01/2021,0000462176,447.50,Revenue,E A Foulds Limited,0
South Ribble Borough Council,http://statistics.data.gov.uk/id/local-authority/30UE,Central Support Services,,Information Services,Technical Support,4246,Communications & Comuting,"Annual maintenance support on 2 Fujitsu scanners for period 31/01/21 - 30/01/22, as per quote",15/01/2021,0000462109,"1,364.00",Revenue,E FILE UK LTD,0
South Ribble Borough Council,http://statistics.data.gov.uk/id/local-authority/30UE,Central Support Services,,Information Services,Telecomms - Mobile,4260,Communications & Comuting,Airtime,13/01/2021,0000461814,"4,193.83",Revenue,EE Ltd,0
South Ribble Borough Council,http://statistics.data.gov.uk/id/local-authority/30UE,Open Spaces,,Area 3 - Parks/Leyland East West,GM Refurbishment,4657,Expenses,Ground Investigations and Report at Haig Avenue Playground.,06/01/2021,0000459612,"2,000.00",Revenue,Ensafe Consultants,0
South Ribble Borough Council,http://statistics.data.gov.uk/id/local-authority/30UE,Waste Collection,,Area 2 - Waste Transport/Eastern & Central Teams,Waste Permits,5110,Waste Disposal,EPR Ref: SP3897CV/A001 Permit ref 054192 Charge period 01/04/20 -31/03/21,27/01/2021,0000462440,"1,230.25",Revenue,ENVIRONMENT AGENCY,0
South Ribble Borough Council,http://statistics.data.gov.uk/id/local-authority/30UE,Open Spaces,,Area 3 - Parks/Leyland East West,GM Refurbishment,4657,Expenses,Updated bat survey for Hurst Grange Park Coach House Penwortham,29/01/2021,0000462436,450.00,Revenue,ERAP (Consultant Ecologists) Ltd,0
South Ribble Borough Council,http://statistics.data.gov.uk/id/local-authority/30UE,Central Support Services,,Area 2 - Waste Transport/Eastern & Central Teams,Hiring Expenses,3212,Contract Hire & Operating Leas,3 week retainer fee for VN63 UAH @ 250.00 per week commencing 16.11.20,06/01/2021,0000460653,750.00,Revenue,Euro Municipals Ltd,0
South Ribble Borough Council,http://statistics.data.gov.uk/id/local-authority/30UE,Central Support Services,,Area 2 - Waste Transport/Eastern & Central Teams,Hiring Expenses,3212,Contract Hire & Operating Leas,Hire of 70/30 refuse truck VN63 UAH for 2 weeks 2.11.20 - 13.11.20,06/01/2021,0000460654,"2,000.00",Revenue,Euro Municipals Ltd,0
South Ribble Borough Council,http://statistics.data.gov.uk/id/local-authority/30UE,Recycling,,Area 2 - Waste Transport/Eastern & Central Teams,Hiring Expenses,3212,Contract Hire & Operating Leas,Hire of RCV VX15 KCV from 7.12.20 for 4 weeks @ 1000.00 per week to cover Christmas Collections Delivery & Collection,06/01/2021,0000461711,"4,300.00",Revenue,Euro Municipals Ltd,0
South Ribble Borough Council,http://statistics.data.gov.uk/id/local-authority/30UE,Recycling,,Area 2 - Waste Transport/Eastern & Central Teams,Hiring Expenses,3212,Contract Hire & Operating Leas,Hire of RCV VN63 UAH 7.12.20 for 4 weeks @ 1000.00 per week to cover Christmas Collections,06/01/2021,0000461712,"4,000.00",Revenue,Euro Municipals Ltd,0
South Ribble Borough Council,http://statistics.data.gov.uk/id/local-authority/30UE,Recycling,,Area 2 - Waste Transport/Eastern & Central Teams,Hiring Expenses,3212,Contract Hire & Operating Leas,Hire of RCV VX15 KCV from 7.12.20 for 4 weeks @ 1000.00 per week to cover Christmas Collections Delivery & Collection 300.00 ,22/01/2021,0000461985,300.00,Revenue,Euro Municipals Ltd,0
South Ribble Borough Council,http://statistics.data.gov.uk/id/local-authority/30UE,Recycling,,Area 2 - Waste Transport/Eastern & Central Teams,Hiring Expenses,3212,Contract Hire & Operating Leas,Hire of RCV VX15 KCV from 4.1.21 - 8.1.21 to cover Christmas Collections Off hired 8.1.21,22/01/2021,0000461985,"1,000.00",Revenue,Euro Municipals Ltd,0
South Ribble Borough Council,http://statistics.data.gov.uk/id/local-authority/30UE,Central Support Services,,Area 2 - Waste Transport/Eastern & Central Teams,Materials General,4040,Furniture- Equip & Materials,1 valve block VU60HLE JFC16017,27/01/2021,0000462203,275.00,Revenue,Euro Municipals Ltd,0
South Ribble Borough Council,http://statistics.data.gov.uk/id/local-authority/30UE,Central Support Services,,Area 2 - Waste Transport/Eastern & Central Teams,Materials General,4040,Furniture- Equip & Materials,1 x Ejector Ram  Not required so returned to supplier who issued Credit Note CN19360 which we have taken. ,27/01/2021,0000462409,850.00,Revenue,Euro Municipals Ltd,0
South Ribble Borough Council,http://statistics.data.gov.uk/id/local-authority/30UE,Recycling,,Area 2 - Waste Transport/Eastern & Central Teams,Hiring Expenses,3212,Contract Hire & Operating Leas,Hire of RCV VN63 UAH 41.21 - 8.1.21 to cover Christmas Collections,27/01/2021,0000462447,"1,000.00",Revenue,Euro Municipals Ltd,0
South Ribble Borough Council,http://statistics.data.gov.uk/id/local-authority/30UE,Recycling,,Area 2 - Waste Transport/Eastern & Central Teams,Hiring Expenses,3212,Contract Hire & Operating Leas,Collection of the above vehicle,27/01/2021,0000462447,300.00,Revenue,Euro Municipals Ltd,0
South Ribble Borough Council,http://statistics.data.gov.uk/id/local-authority/30UE,Community Development,,Regeneration,Core Fund,4861,Miscellaneous Expenses,"Deliver the Western Parishes newsletter Hutton, New Longton, Whitestake, Longton, Walmer Bridge, Much Hoole - 6500 newsletters",15/01/2021,0000462055,357.50,Revenue,EUROMEDIA ASSOCIATES LTD,0
South Ribble Borough Council,http://statistics.data.gov.uk/id/local-authority/30UE,Central Support Services,,Area 2 - Waste Transport/Eastern & Central Teams,Materials General,4040,Furniture- Equip & Materials,12 x deck pin bushes - BIN 1040,15/01/2021,0000460795,30.48,Revenue,F R SHARROCK LTD,0
South Ribble Borough Council,http://statistics.data.gov.uk/id/local-authority/30UE,Central Support Services,,Area 2 - Waste Transport/Eastern & Central Teams,Materials General,4040,Furniture- Equip & Materials,4 x deck pins - BIN 1041,15/01/2021,0000460795,65.64,Revenue,F R SHARROCK LTD,0
South Ribble Borough Council,http://statistics.data.gov.uk/id/local-authority/30UE,Central Support Services,,Area 2 - Waste Transport/Eastern & Central Teams,Materials General,4040,Furniture- Equip & Materials,168 x bottom blade screws - BIN 1114,15/01/2021,0000460795,47.04,Revenue,F R SHARROCK LTD,0
South Ribble Borough Council,http://statistics.data.gov.uk/id/local-authority/30UE,Central Support Services,,Area 2 - Waste Transport/Eastern & Central Teams,Materials General,4040,Furniture- Equip & Materials,30 x oil seals BIN1109,15/01/2021,0000460795,173.40,Revenue,F R SHARROCK LTD,0
South Ribble Borough Council,http://statistics.data.gov.uk/id/local-authority/30UE,Central Support Services,,Area 2 - Waste Transport/Eastern & Central Teams,Materials General,4040,Furniture- Equip & Materials,24 x bottom blades- BIN 1265,06/01/2021,0000461292,285.79,Revenue,F R SHARROCK LTD,0
South Ribble Borough Council,http://statistics.data.gov.uk/id/local-authority/30UE,Central Support Services,,Area 2 - Waste Transport/Eastern & Central Teams,Materials General,4040,Furniture- Equip & Materials,12 x cutting cylinders- BIN 1293,06/01/2021,0000461292,"2,228.40",Revenue,F R SHARROCK LTD,0
South Ribble Borough Council,http://statistics.data.gov.uk/id/local-authority/30UE,Waste Collection,,Area 2 - Waste Transport/Eastern & Central Teams,External Contractors Charges,4570,Services,Residual Waste Collections December 2020,15/01/2021,0000461720,"46,869.90",Revenue,FCC Environment Services (UK) Ltd,0
South Ribble Borough Council,http://statistics.data.gov.uk/id/local-authority/30UE,Recycling,,Area 2 - Waste Transport/Eastern & Central Teams,External Contractors Charges,4570,Services,Dry recyclable (Non Terraced) Collections December 2020,15/01/2021,0000461720,"47,981.92",Revenue,FCC Environment Services (UK) Ltd,0
South Ribble Borough Council,http://statistics.data.gov.uk/id/local-authority/30UE,Recycling,,Area 2 - Waste Transport/Eastern & Central Teams,External Contractors Charges,4570,Services,Dry Recyclable (Terraced) Collections December 2020,15/01/2021,0000461720,"2,283.78",Revenue,FCC Environment Services (UK) Ltd,0
South Ribble Borough Council,http://statistics.data.gov.uk/id/local-authority/30UE,Recycling,,Area 2 - Waste Transport/Eastern & Central Teams,External Contractors Charges,4570,Services,Organic Waste (Non Terraced) December 2020,15/01/2021,0000461720,"33,222.59",Revenue,FCC Environment Services (UK) Ltd,0
South Ribble Borough Council,http://statistics.data.gov.uk/id/local-authority/30UE,Trade Waste,,Area 2 - Waste Transport/Eastern & Central Teams,External Contractors Charges,4570,Services,Schedule 2 Properties Collections December 2020,15/01/2021,0000461720,"1,910.50",Revenue,FCC Environment Services (UK) Ltd,0
South Ribble Borough Council,http://statistics.data.gov.uk/id/local-authority/30UE,Trade Waste,,Area 2 - Waste Transport/Eastern & Central Teams,External Contractors Charges,4570,Services,Commercial Collections December 2020,15/01/2021,0000461720,"7,439.27",Revenue,FCC Environment Services (UK) Ltd,0
South Ribble Borough Council,http://statistics.data.gov.uk/id/local-authority/30UE,Trade Waste,,Area 2 - Waste Transport/Eastern & Central Teams,External Contractors Charges,4570,Services,Bulky Waste Collections December 2020,15/01/2021,0000461720,"1,032.37",Revenue,FCC Environment Services (UK) Ltd,0
South Ribble Borough Council,http://statistics.data.gov.uk/id/local-authority/30UE,Waste Collection,,Area 2 - Waste Transport/Eastern & Central Teams,External Contractors Charges,4570,Services,WEEE Collections December 2020,15/01/2021,0000461720,387.78,Revenue,FCC Environment Services (UK) Ltd,0
South Ribble Borough Council,http://statistics.data.gov.uk/id/local-authority/30UE,Waste Collection,,Area 2 - Waste Transport/Eastern & Central Teams,External Contractors Charges,4570,Services,Clinical Waste Collections December 2020,15/01/2021,0000461720,660.62,Revenue,FCC Environment Services (UK) Ltd,0
South Ribble Borough Council,http://statistics.data.gov.uk/id/local-authority/30UE,Waste Collection,,Area 2 - Waste Transport/Eastern & Central Teams,External Contractors Charges,4570,Services,Replacement Bins December 2020,15/01/2021,0000461720,"5,000.00",Revenue,FCC Environment Services (UK) Ltd,0
South Ribble Borough Council,http://statistics.data.gov.uk/id/local-authority/30UE,Waste Collection,,Area 2 - Waste Transport/Eastern & Central Teams,External Contractors Charges,4570,Services,Additional Properties December 2020,15/01/2021,0000461720,"4,116.80",Revenue,FCC Environment Services (UK) Ltd,0
South Ribble Borough Council,http://statistics.data.gov.uk/id/local-authority/30UE,Short Term Creditors,,Area 2 - Waste Transport/Eastern & Central Teams,Amount Paid,0030,Balance Sheet,refuse retention,15/01/2021,0000461720,"-3,120.86",Revenue,FCC Environment Services (UK) Ltd,0
South Ribble Borough Council,http://statistics.data.gov.uk/id/local-authority/30UE,Short Term Creditors,,Area 2 - Waste Transport/Eastern & Central Teams,Amount Paid,0030,Balance Sheet,recycling ret,15/01/2021,0000461720,"-4,174.41",Revenue,FCC Environment Services (UK) Ltd,0
South Ribble Borough Council,http://statistics.data.gov.uk/id/local-authority/30UE,Waste Collection,,Area 2 - Waste Transport/Eastern & Central Teams,External Contractors Charges,4570,Services,Additional Clinical Waste Collections December 2020,15/01/2021,0000461811,388.70,Revenue,FCC Environment Services (UK) Ltd,0
South Ribble Borough Council,http://statistics.data.gov.uk/id/local-authority/30UE,Short Term Creditors,,Area 2 - Waste Transport/Eastern & Central Teams,Amount Paid,0030,Balance Sheet,clinical retention,15/01/2021,0000461811,-19.44,Revenue,FCC Environment Services (UK) Ltd,0
South Ribble Borough Council,http://statistics.data.gov.uk/id/local-authority/30UE,Waste Collection,,Area 2 - Waste Transport/Eastern & Central Teams,External Contractors Charges,4570,Services,Additional WEEE Collections December 2020,15/01/2021,0000461812,535.58,Revenue,FCC Environment Services (UK) Ltd,0
South Ribble Borough Council,http://statistics.data.gov.uk/id/local-authority/30UE,Waste Collection,,Area 2 - Waste Transport/Eastern & Central Teams,External Contractors Charges,4570,Services,Additional Bulky Waste Collections December 2020,15/01/2021,0000461812,430.10,Revenue,FCC Environment Services (UK) Ltd,0
South Ribble Borough Council,http://statistics.data.gov.uk/id/local-authority/30UE,Short Term Creditors,,Area 2 - Waste Transport/Eastern & Central Teams,Amount Paid,0030,Balance Sheet,retention,15/01/2021,0000461812,-53.11,Revenue,FCC Environment Services (UK) Ltd,0
South Ribble Borough Council,http://statistics.data.gov.uk/id/local-authority/30UE,Recycling,,Area 2 - Waste Transport/Eastern & Central Teams,External Contractors Charges,4570,Services,Additional Recycling Collections over Christmas period December 2020/January 2021,15/01/2021,0000461944,"4,000.00",Revenue,FCC Environment Services (UK) Ltd,0
South Ribble Borough Council,http://statistics.data.gov.uk/id/local-authority/30UE,Short Term Creditors,,Area 2 - Waste Transport/Eastern & Central Teams,Amount Paid,0030,Balance Sheet,Recycling - Retention Claim Back July - December 2020,27/01/2021,0000462347,"24,669.85",Revenue,FCC Environment Services (UK) Ltd,0
South Ribble Borough Council,http://statistics.data.gov.uk/id/local-authority/30UE,Short Term Creditors,,Area 2 - Waste Transport/Eastern & Central Teams,Amount Paid,0030,Balance Sheet,Refuse - Retention Claim Back July - December 2020,27/01/2021,0000462347,"18,389.82",Revenue,FCC Environment Services (UK) Ltd,0
South Ribble Borough Council,http://statistics.data.gov.uk/id/local-authority/30UE,Short Term Creditors,,Area 2 - Waste Transport/Eastern & Central Teams,Amount Paid,0030,Balance Sheet,Clinical Waste - Retention Claim Back July - December 2020,27/01/2021,0000462347,125.11,Revenue,FCC Environment Services (UK) Ltd,0
South Ribble Borough Council,http://statistics.data.gov.uk/id/local-authority/30UE,Short Term Creditors,,Area 2 - Waste Transport/Eastern & Central Teams,Amount Paid,0030,Balance Sheet,Bulky Waste - Retention Claim Back July - December 2020,27/01/2021,0000462347,574.76,Revenue,FCC Environment Services (UK) Ltd,0
South Ribble Borough Council,http://statistics.data.gov.uk/id/local-authority/30UE,Short Term Creditors,,Area 2 - Waste Transport/Eastern & Central Teams,Amount Paid,0030,Balance Sheet,April - July 2020 Catch up,27/01/2021,0000462347,949.32,Revenue,FCC Environment Services (UK) Ltd,0
South Ribble Borough Council,http://statistics.data.gov.uk/id/local-authority/30UE,Waste Collection,,Area 2 - Waste Transport/Eastern & Central Teams,External Contractors Charges,4570,Services,Additional Costs incurred as a result of Covid 19 covering the period 1.4.20 - 30.8.20 as agree at Leadership Meeting of 14.12.20,27/01/2021,0000462351,"8,994.48",Revenue,FCC Environment Services (UK) Ltd,0
South Ribble Borough Council,http://statistics.data.gov.uk/id/local-authority/30UE,Central Support Services,,Neighbourhood Admin & Support,Materials General,4040,Furniture- Equip & Materials,FOOTBALL PITCH LINE MARKER PAINT 10LTRS - PITCHMARKER Q2,22/01/2021,0000462230,497.04,Revenue,Fleet Line Markers Limited,0
South Ribble Borough Council,http://statistics.data.gov.uk/id/local-authority/30UE,Central Support Services,,Area 2 - Waste Transport/Eastern & Central Teams,Materials General,4040,Furniture- Equip & Materials,2 x hydraulic cylinders YD19ATY JFC15372,06/01/2021,0000458978,"1,683.46",Revenue,GEESINK NORBA LTD,0
South Ribble Borough Council,http://statistics.data.gov.uk/id/local-authority/30UE,Central Support Services,,Area 2 - Waste Transport/Eastern & Central Teams,Materials General,4040,Furniture- Equip & Materials,4 x pins YD19ATY JFC15372,06/01/2021,0000458978,200.72,Revenue,GEESINK NORBA LTD,0
South Ribble Borough Council,http://statistics.data.gov.uk/id/local-authority/30UE,Central Support Services,,Area 2 - Waste Transport/Eastern & Central Teams,Materials General,4040,Furniture- Equip & Materials,4 x springs -G001,06/01/2021,0000461142,88.36,Revenue,GEESINK NORBA LTD,0
South Ribble Borough Council,http://statistics.data.gov.uk/id/local-authority/30UE,Central Support Services,,Area 2 - Waste Transport/Eastern & Central Teams,Materials General,4040,Furniture- Equip & Materials, 2 x marker lamp - BIN- G028,06/01/2021,0000461142,83.04,Revenue,GEESINK NORBA LTD,0
South Ribble Borough Council,http://statistics.data.gov.uk/id/local-authority/30UE,Central Support Services,,Area 2 - Waste Transport/Eastern & Central Teams,Materials General,4040,Furniture- Equip & Materials,4 x safety toggles BIN G009,06/01/2021,0000461142,21.28,Revenue,GEESINK NORBA LTD,0
South Ribble Borough Council,http://statistics.data.gov.uk/id/local-authority/30UE,Central Support Services,,Area 2 - Waste Transport/Eastern & Central Teams,Materials General,4040,Furniture- Equip & Materials,4 x LED Lamps 4 x yoke ram bearings 4 x yoke ram pins YE19JPW JFC15779,06/01/2021,0000461142,595.00,Revenue,GEESINK NORBA LTD,0
South Ribble Borough Council,http://statistics.data.gov.uk/id/local-authority/30UE,Central Support Services,,Area 2 - Waste Transport/Eastern & Central Teams,Materials General,4040,Furniture- Equip & Materials,2 x rams and PINS plus DELIVERY 50.00 2 x pins YD19ATZ JFC15867,20/01/2021,0000461424,"1,465.96",Revenue,GEESINK NORBA LTD,0
South Ribble Borough Council,http://statistics.data.gov.uk/id/local-authority/30UE,Central Support Services,,Area 2 - Waste Transport/Eastern & Central Teams,Materials General,4040,Furniture- Equip & Materials,SURCHARGE x 2,20/01/2021,0000461424,400.00,Revenue,GEESINK NORBA LTD,0
South Ribble Borough Council,http://statistics.data.gov.uk/id/local-authority/30UE,Central Support Services,,Area 2 - Waste Transport/Eastern & Central Teams,Materials General,4040,Furniture- Equip & Materials,2 x Euro VN Bin locator Bin G010,20/01/2021,0000461995,328.30,Revenue,GEESINK NORBA LTD,0
South Ribble Borough Council,http://statistics.data.gov.uk/id/local-authority/30UE,Central Support Services,,Area 2 - Waste Transport/Eastern & Central Teams,Materials General,4040,Furniture- Equip & Materials,1 x proxy switch G008,20/01/2021,0000461995,38.13,Revenue,GEESINK NORBA LTD,0
South Ribble Borough Council,http://statistics.data.gov.uk/id/local-authority/30UE,Central Support Services,,Area 2 - Waste Transport/Eastern & Central Teams,Materials General,4040,Furniture- Equip & Materials,1 x underrun sensor G024,20/01/2021,0000461995,300.00,Revenue,GEESINK NORBA LTD,0
South Ribble Borough Council,http://statistics.data.gov.uk/id/local-authority/30UE,Central Support Services,,Area 2 - Waste Transport/Eastern & Central Teams,Materials General,4040,Furniture- Equip & Materials,DELIVERY,20/01/2021,0000461995,20.00,Revenue,GEESINK NORBA LTD,0
South Ribble Borough Council,http://statistics.data.gov.uk/id/local-authority/30UE,Central Support Services,,Legal,Legal,4821,Miscellaneous Expenses,"PROFESSIONAL SERVICES WITH REGARD TO NAME REDACTED - LAND REAR OF OAKDENE, CHAIN HOUSE LANE",06/01/2021,0000461490,"1,400.00",Revenue,Giles Cannock,0
South Ribble Borough Council,http://statistics.data.gov.uk/id/local-authority/30UE,Central Support Services,,Legal,Legal,4821,Miscellaneous Expenses,"PROFESSIONAL SERVICES WITH REGARD TO NAME REDACTED - LAND REAR OF OAKDENE, CHAIN HOUSE LANE",22/01/2021,0000462280,"1,400.00",Revenue,Giles Cannock,0
South Ribble Borough Council,http://statistics.data.gov.uk/id/local-authority/30UE,Corporate Management,,Neighbourhood Admin & Support,Materials General,4040,Furniture- Equip & Materials,MOVING 3 X BOTTLE BANKS AT LOCATION PR25 1DH DUE TO COVID TESTING CENTRE,06/01/2021,0000459544,450.00,Revenue,GLASS RECYCLING UK LTD,0
South Ribble Borough Council,http://statistics.data.gov.uk/id/local-authority/30UE,Central Support Services,,Property Services,Reactive Repair & Maintenance,2020,Premises Repair & Mtne,Please attend Moss side depot to replace the seized gate valve.,13/01/2021,0000461758,384.00,Revenue,GOS Heating Ltd,0
South Ribble Borough Council,http://statistics.data.gov.uk/id/local-authority/30UE,Central Support Services,,Property Services,Reactive Repair & Maintenance,2020,Premises Repair & Mtne,"This is to repair leaking toilet(s) and tap(s) over at Moss Side Depot, as per NAME REDACTED instructions once they arrive on site.",13/01/2021,0000461954,459.09,Revenue,GOS Heating Ltd,0
South Ribble Borough Council,http://statistics.data.gov.uk/id/local-authority/30UE,Corporate Management,,Shared Financial Services,External Audit Fees,4512,Services,South Ribble 2019-20 additional fee as set out in the Audit Plan,22/01/2021,0000459773,"19,470.00",Revenue,Grant Thornton UK LLP,0
South Ribble Borough Council,http://statistics.data.gov.uk/id/local-authority/30UE,Corporate Management,,Shared Financial Services,External Audit Fees,4512,Services,South Ribble Borough Council - Main Audit Fee 2020-21,20/01/2021,0000459924,"8,455.25",Revenue,Grant Thornton UK LLP,0
South Ribble Borough Council,http://statistics.data.gov.uk/id/local-authority/30UE,Corporate Management,,Shared Financial Services,External Audit Fees,4512,Services,South Ribble Borough Council - Main Audit Fee 2020-21,15/01/2021,0000461175,"8,455.25",Revenue,Grant Thornton UK LLP,0
South Ribble Borough Council,http://statistics.data.gov.uk/id/local-authority/30UE,Unapportionable Central OHeads,,Shared Financial Services,GMC -PIA Payments,1701,Other Employee Expenses,Rechargeable Pension Costs 2020-21,13/01/2021,0000460532,"6,857.27",Revenue,GREATER MANCHESTER PENSION FUND,0
South Ribble Borough Council,http://statistics.data.gov.uk/id/local-authority/30UE,Central Support Services,,Area 2 - Waste Transport/Eastern & Central Teams,Materials General,4040,Furniture- Equip & Materials,Filters for Stores - December 2020,06/01/2021,0000461454,578.00,Revenue,H & J SERVICES LTD,0
South Ribble Borough Council,http://statistics.data.gov.uk/id/local-authority/30UE,Central Support Services,,Area 2 - Waste Transport/Eastern & Central Teams,Materials General,4040,Furniture- Equip & Materials,4 x 0813 DAF BRAKE PAD KITS - BIN 541,15/01/2021,0000462128,289.00,Revenue,H & J SERVICES LTD,0
South Ribble Borough Council,http://statistics.data.gov.uk/id/local-authority/30UE,Open Spaces,,Area 3 - Parks/Leyland East West,GM Refurbishment,4657,Expenses,4x swing bearing assemblies with shackles and fixings plus delivery. Quote ref S1077,06/01/2021,0000461486,385.50,Revenue,HAGS SMP LTD,0
South Ribble Borough Council,http://statistics.data.gov.uk/id/local-authority/30UE,Open Spaces,,Area 3 - Parks/Leyland East West,GM Refurbishment,4657,Expenses,1 x HPL Ramp Floor Assembly with slats and fixings (floor to deck)- HAG8066226,20/01/2021,0000462211,328.50,Revenue,HAGS SMP LTD,0
South Ribble Borough Council,http://statistics.data.gov.uk/id/local-authority/30UE,Open Spaces,,Area 3 - Parks/Leyland East West,GM Refurbishment,4657,Expenses,1 x HPL ramp floor assembly with slats and fixings (Floor to deck) - HAG8066997,20/01/2021,0000462211,54.00,Revenue,HAGS SMP LTD,0
South Ribble Borough Council,http://statistics.data.gov.uk/id/local-authority/30UE,Open Spaces,,Area 3 - Parks/Leyland East West,GM Refurbishment,4657,Expenses,1 x HPL Ramp floor assembly with slats and fixing deck to deck - HAG8066227,20/01/2021,0000462211,225.00,Revenue,HAGS SMP LTD,0
South Ribble Borough Council,http://statistics.data.gov.uk/id/local-authority/30UE,Open Spaces,,Area 3 - Parks/Leyland East West,GM Refurbishment,4657,Expenses,1 x HPL Ramp floor assembly with slats and fixing deck to deck - HAG8067038,20/01/2021,0000462211,67.50,Revenue,HAGS SMP LTD,0
South Ribble Borough Council,http://statistics.data.gov.uk/id/local-authority/30UE,Open Spaces,,Area 3 - Parks/Leyland East West,GM Refurbishment,4657,Expenses,HPL Climber wall assembly with grips and fixings - HAG8066228,20/01/2021,0000462211,508.50,Revenue,HAGS SMP LTD,0
South Ribble Borough Council,http://statistics.data.gov.uk/id/local-authority/30UE,Open Spaces,,Area 3 - Parks/Leyland East West,GM Refurbishment,4657,Expenses,HPL Climber wall assembly with grips and fixings -HAG8066976,20/01/2021,0000462211,85.50,Revenue,HAGS SMP LTD,0
South Ribble Borough Council,http://statistics.data.gov.uk/id/local-authority/30UE,Open Spaces,,Area 3 - Parks/Leyland East West,GM Refurbishment,4657,Expenses,5 x HPL Deck 0.67M by 0.67M with brackets and fixings- HAG8045921,20/01/2021,0000462211,"1,192.50",Revenue,HAGS SMP LTD,0
South Ribble Borough Council,http://statistics.data.gov.uk/id/local-authority/30UE,Open Spaces,,Area 3 - Parks/Leyland East West,GM Refurbishment,4657,Expenses,3 x HPL shop counter/table top with brackets and fixings- HAG8045373,20/01/2021,0000462211,256.50,Revenue,HAGS SMP LTD,0
South Ribble Borough Council,http://statistics.data.gov.uk/id/local-authority/30UE,Open Spaces,,Area 3 - Parks/Leyland East West,GM Refurbishment,4657,Expenses,2 x HPL deck 0.67M x 0.67M with brackets and fixings- HAG8045921,20/01/2021,0000462211,477.00,Revenue,HAGS SMP LTD,0
South Ribble Borough Council,http://statistics.data.gov.uk/id/local-authority/30UE,Open Spaces,,Area 3 - Parks/Leyland East West,GM Refurbishment,4657,Expenses,Delivery,20/01/2021,0000462211,200.00,Revenue,HAGS SMP LTD,0
South Ribble Borough Council,http://statistics.data.gov.uk/id/local-authority/30UE,Open Spaces,,Area 3 - Parks/Leyland East West,GM Refurbishment,4657,Expenses,2 x 38008510 & fixings Net Climber Half with lengthening chains and coupling links @ 675.00 = 1350.00 Delivery 100.00,20/01/2021,0000462212,"1,305.00",Revenue,HAGS SMP LTD,0
South Ribble Borough Council,http://statistics.data.gov.uk/id/local-authority/30UE,Open Spaces,,Area 3 - Parks/Leyland East West,GM Refurbishment,4657,Expenses,2 x HAG8018664 Seat For Moses with Fixings (now black) @ 135.00 - 270.00 Delivery - 30.00,20/01/2021,0000462213,300.00,Revenue,HAGS SMP LTD,0
South Ribble Borough Council,http://statistics.data.gov.uk/id/local-authority/30UE,Open Spaces,,Area 3 - Parks/Leyland East West,GM Refurbishment,4657,Expenses,1 x HAG8011924 Slide Assembly with Fixings and Top Panels in Red for steel post/105m deck - 2180.00 Delivery @ 12%,20/01/2021,0000462214,"2,197.44",Revenue,HAGS SMP LTD,0
South Ribble Borough Council,http://statistics.data.gov.uk/id/local-authority/30UE,Open Spaces,,Area 3 - Parks/Leyland East West,GM Refurbishment,4657,Expenses,Moon Buggy parts as per quote ref S1078: 1 x HAG8019037 (parts 8 and 9 etc) Steering Wheel Assembly with Fixings - 210.00,29/01/2021,0000462424,547.20,Revenue,HAGS SMP LTD,0
South Ribble Borough Council,http://statistics.data.gov.uk/id/local-authority/30UE,Capital,,Area 2 - Waste Transport/Eastern & Central Teams,Cap Vehicles,C440,Capital Vehicles,"Supply, delivery & commissioning of Karcher HDS 10/20-4m Pressure Washer as quoted vis email on 19/10/2020.",06/01/2021,0000460851,"2,699.00",Revenue,HANSON CLEANING EQUIPMENT LIMITED,0
South Ribble Borough Council,http://statistics.data.gov.uk/id/local-authority/30UE,Central Support Services,,Planning,Publications General,4140,Printing- Stat & Office Expens,Renewal of Planning Resource subscription for 5 x users,22/01/2021,0000461713,"1,200.00",Revenue,HAYMARKET MEDIA GROUP LTD,0
South Ribble Borough Council,http://statistics.data.gov.uk/id/local-authority/30UE,Corporate Management,,Information Services,Technical Support,4246,Communications & Comuting,40 x Access License increase 442.40 per annum and Door relocation 900.00,13/01/2021,0000461451,"1,340.00",Revenue,HFX LTD,0
South Ribble Borough Council,http://statistics.data.gov.uk/id/local-authority/30UE,Short Term Creditors,,Shared Financial Services,Amount Received,0140,Balance Sheet,,13/01/2021,0000461369,500.00,Revenue,HM REVENUE & CUSTOMS,0
South Ribble Borough Council,http://statistics.data.gov.uk/id/local-authority/30UE,Short Term Creditors,,Shared Financial Services,Amount Received,0140,Balance Sheet,,13/01/2021,0000461487,300.00,Revenue,HM REVENUE & CUSTOMS,0
South Ribble Borough Council,http://statistics.data.gov.uk/id/local-authority/30UE,Corporate Management,,Property Services,Improvements to Premises,2023,Premises Repair & Mtne,"MATERIALS CAB office on the second floor works. Formation of stud partition walls and skirting, cladding, insulation,doors ",15/01/2021,0000462088,"7,238.29",Revenue,Holden Building Solutions Limited,0
South Ribble Borough Council,http://statistics.data.gov.uk/id/local-authority/30UE,Corporate Management,,Property Services,Improvements to Premises,2023,Premises Repair & Mtne,LABOUR,15/01/2021,0000462088,"4,784.65",Revenue,Holden Building Solutions Limited,0
South Ribble Borough Council,http://statistics.data.gov.uk/id/local-authority/30UE,Open Spaces,,Area 3 - Parks/Leyland East West,GM Refurbishment,4657,Expenses,1x Prosafe Hydraulic self closing gate c/w hang and slam post - 1000mm high x 1205mm wide in yellow ral 1021,20/01/2021,0000462250,723.03,Revenue,IAE,0
South Ribble Borough Council,http://statistics.data.gov.uk/id/local-authority/30UE,Open Spaces,,Area 3 - Parks/Leyland East West,GM Refurbishment,4657,Expenses,Carriage,20/01/2021,0000462250,110.00,Revenue,IAE,0
South Ribble Borough Council,http://statistics.data.gov.uk/id/local-authority/30UE,Capital,,Area 3 - Parks/Leyland East West,Cap Contract Payment,C230,Capital Other Land & Bldgs,"Post Contract Variations, Site Meetings, Financial Statements (based on 7 months)",15/01/2021,0000461996,"1,375.40",Revenue,Ian Brew QS Consultancy,0
South Ribble Borough Council,http://statistics.data.gov.uk/id/local-authority/30UE,Development Control,,Planning,Legal,4821,Miscellaneous Expenses,To act as an expert witness at the forthcoming Planning Appeal in respect of planning app for 100 homes at Chain House Lane,08/01/2021,0000461416,412.50,Revenue,Iceni Projects Limited,0
South Ribble Borough Council,http://statistics.data.gov.uk/id/local-authority/30UE,Central Support Services,,Information Services,Applications Systems,4248,Communications & Comuting,"Lalpac user licence maint.  578.03 & LALM Lalpac Comprehensive package (Classic) 1,713.27 for period 23/01/21-31/03/21",20/01/2021,0000462252,"2,291.30",Revenue,IDOX PLC,0
South Ribble Borough Council,http://statistics.data.gov.uk/id/local-authority/30UE,Local Tax Collection,,Revenues Plus,Professional Fees,4510,Services,"RV Finder - Rimmer House Farm, Bank Head Lane, Bamber Bridge",13/01/2021,0000462025,"1,525.00",Revenue,Inform CPI Ltd,0
South Ribble Borough Council,http://statistics.data.gov.uk/id/local-authority/30UE,Central Support Services,,Revenues Plus,Other Fees,4520,Services,IRRV Forum Membership 2021,20/01/2021,0000462103,"1,200.00",Revenue,INST OF REVENUES RATING & VALUATION,0
South Ribble Borough Council,http://statistics.data.gov.uk/id/local-authority/30UE,Central Support Services,,Neighbourhood Admin & Support,Materials General,4040,Furniture- Equip & Materials,PERMANENT POTHOLE REPAIR - TUB - Special,20/01/2021,0000461803,191.49,Revenue,INSTARMAC GROUP PLC,0
South Ribble Borough Council,http://statistics.data.gov.uk/id/local-authority/30UE,Central Support Services,,Neighbourhood Admin & Support,Materials General,4040,Furniture- Equip & Materials,QC10 - QUICK SET CONCRETE,20/01/2021,0000461803,"1,228.64",Revenue,INSTARMAC GROUP PLC,0
South Ribble Borough Council,http://statistics.data.gov.uk/id/local-authority/30UE,Capital,,Regeneration,Cap Contract Payment,C230,Capital Other Land & Bldgs,Re: 076695 � Worden Hall � Drainage Surveys asper quote 2035a dated Sept to NAME REDACTED CCTV survey to worden central,22/01/2021,0000460903,"1,740.00",Revenue,Invek Surveys Ltd,0
South Ribble Borough Council,http://statistics.data.gov.uk/id/local-authority/30UE,Capital,,Area 3 - Parks/Leyland East West,Cap Contract Payment,C230,Capital Other Land & Bldgs,"Architects Fees for Stages 5 and 6, Hurst Grange Coach House, Penwortham",22/01/2021,0000462327,"1,605.00",Revenue,Ivan Wilson Architect,0
South Ribble Borough Council,http://statistics.data.gov.uk/id/local-authority/30UE,Open Spaces,,Neighbourhood Admin & Support,Plants Trees & Shrubs,4046,Furniture- Equip & Materials,Supply of various trees as detailed on attached list.,22/01/2021,0000461442,"2,375.00",Revenue,J A JONES & SONS,0
South Ribble Borough Council,http://statistics.data.gov.uk/id/local-authority/30UE,Open Spaces,,Neighbourhood Admin & Support,Plants Trees & Shrubs,4046,Furniture- Equip & Materials,Delivery,22/01/2021,0000461442,60.00,Revenue,J A JONES & SONS,0
South Ribble Borough Council,http://statistics.data.gov.uk/id/local-authority/30UE,Surplus or Deficit on Trading,,Property Services,Reactive Repair & Maintenance,2020,Premises Repair & Mtne,"100% �Non-Intrusive� Passive Fire Survey   Penwortham Community Centre, Kingsfold Drive, as per NAME REDACTED",27/01/2021,0000462332,580.00,Revenue,JFN Integrated Solutions Ltd,0
South Ribble Borough Council,http://statistics.data.gov.uk/id/local-authority/30UE,Development Control,,Planning,Advertising,4841,Miscellaneous Expenses,Press notices in the Lancashire Evening Post for Planning Applications July 2020 to March 2021,06/01/2021,0000461095,891.00,Revenue,JPI Media - JOHNSTON PUBLISHING (NORTH WEST),0
South Ribble Borough Council,http://statistics.data.gov.uk/id/local-authority/30UE,Development Control,,Planning,Advertising,4841,Miscellaneous Expenses,Press notices in the Lancashire Evening Post for Planning Applications July 2020 to March 2021,06/01/2021,0000461444,810.00,Revenue,JPI Media - JOHNSTON PUBLISHING (NORTH WEST),0
South Ribble Borough Council,http://statistics.data.gov.uk/id/local-authority/30UE,Development Control,,Planning,Advertising,4841,Miscellaneous Expenses,Press notices in the Lancashire Evening Post for Planning Applications July 2020 to March 2021,22/01/2021,0000461700,810.00,Revenue,JPI Media - JOHNSTON PUBLISHING (NORTH WEST),0
South Ribble Borough Council,http://statistics.data.gov.uk/id/local-authority/30UE,Open Spaces,,Area 3 - Parks/Leyland East West,External Contractors Charges,4570,Services,"Provide all Traffic Management and carry out all grass cutting to Longton , Samlesbury  and end of M65/ Lostock Lane as per maps",29/01/2021,0000462472,"3,650.00",Revenue,KAYS TRAFFIC MANAGEMENT LTD,0
South Ribble Borough Council,http://statistics.data.gov.uk/id/local-authority/30UE,Corporate Management,,Property Services,Operational Equip & Tools,4010,Furniture- Equip & Materials,TRP119 50 REGATTA TRP119 TYPE IIR MASK PACK 50 98897 10 TRANSFORM MED BLUE NITRILE POWDER FREE GLOVE,29/01/2021,0000462387,"1,067.60",Revenue,KEY ENGINEERING & HYGIENE SUPPLIES LTD,0
South Ribble Borough Council,http://statistics.data.gov.uk/id/local-authority/30UE,Homelessness,,Homelessness,Contributions to Other Bodies,4730,Grants & Subscriptions,Q3 floating support,27/01/2021,0000462043,"7,500.00",Revenue,KEY UNLOCKING FUTURES LTD,0
South Ribble Borough Council,http://statistics.data.gov.uk/id/local-authority/30UE,Homelessness,,Homelessness,Contributions to Other Bodies,4730,Grants & Subscriptions,Q4 providing Housing advice and mediation,27/01/2021,0000462044,"4,875.00",Revenue,KEY UNLOCKING FUTURES LTD,0
South Ribble Borough Council,http://statistics.data.gov.uk/id/local-authority/30UE,Regulatory Services,,Environmental Health,Poisons & Baits,4041,Furniture- Equip & Materials,12 Boxes AF Snappa  AFSBLKBLK @ 14.70,22/01/2021,0000461833,145.56,Revenue,KILLGERM CHEMICALS LTD,0
South Ribble Borough Council,http://statistics.data.gov.uk/id/local-authority/30UE,Regulatory Services,,Environmental Health,Poisons & Baits,4041,Furniture- Equip & Materials,200 x SNAP-E MOUSE TRAP SNAPESME @ 1.53,22/01/2021,0000461833,230.00,Revenue,KILLGERM CHEMICALS LTD,0
South Ribble Borough Council,http://statistics.data.gov.uk/id/local-authority/30UE,Regulatory Services,,Environmental Health,Poisons & Baits,4041,Furniture- Equip & Materials,1 x 250ml K-OTHRINE PARTIX KOTHPART250ML @ 49.50,22/01/2021,0000461833,40.84,Revenue,KILLGERM CHEMICALS LTD,0
South Ribble Borough Council,http://statistics.data.gov.uk/id/local-authority/30UE,Regulatory Services,,Environmental Health,Poisons & Baits,4041,Furniture- Equip & Materials,4 x FLEAPADS (PK OF 6) @ 6.60,22/01/2021,0000461833,21.80,Revenue,KILLGERM CHEMICALS LTD,0
South Ribble Borough Council,http://statistics.data.gov.uk/id/local-authority/30UE,Regulatory Services,,Environmental Health,Poisons & Baits,4041,Furniture- Equip & Materials,50 x BIG SNAP-E RAT TRAP SNAPERAT @ 3.10,22/01/2021,0000461833,107.50,Revenue,KILLGERM CHEMICALS LTD,0
South Ribble Borough Council,http://statistics.data.gov.uk/id/local-authority/30UE,Central Support Services,,Area 2 - Waste Transport/Eastern & Central Teams,Operational Equip & Tools,4010,Furniture- Equip & Materials,1 x Bottle Jack BBJ15 @ 149.95,29/01/2021,0000463638,149.95,Revenue,lancashire Bus and Truck Parts Limited,0
South Ribble Borough Council,http://statistics.data.gov.uk/id/local-authority/30UE,Central Support Services,,Area 2 - Waste Transport/Eastern & Central Teams,Operational Equip & Tools,4010,Furniture- Equip & Materials,2 x Bottle Jack BL10LE @ 110.00,29/01/2021,0000463638,218.32,Revenue,lancashire Bus and Truck Parts Limited,0
South Ribble Borough Council,http://statistics.data.gov.uk/id/local-authority/30UE,Central Support Services,,Area 2 - Waste Transport/Eastern & Central Teams,Materials General,4040,Furniture- Equip & Materials,4000 litres of bulk ad blue @ 0.22ppl,13/01/2021,0000461937,814.22,Revenue,LANCASHIRE OILS LTD,0
South Ribble Borough Council,http://statistics.data.gov.uk/id/local-authority/30UE,Corporate Management,,HR & Communications,Professional Fees,4510,Services,PROFESSIONAL SUBSCRIPTION ELEMENT - REFERENCE RFP 36400 CAR LEASE SACRIFICE,13/01/2021,0000461837,756.00,Revenue,LANCS COUNTY COUNCIL,0
South Ribble Borough Council,http://statistics.data.gov.uk/id/local-authority/30UE,Local Land Charges,,Legal,L C C General,4530,Services,LAND CHARGES - NOVEMBER 2020,27/01/2021,0000462246,"1,426.00",Revenue,LANCS COUNTY COUNCIL,0
South Ribble Borough Council,http://statistics.data.gov.uk/id/local-authority/30UE,Capital,,Housing,Capital Grant,C570,Deferrd Chgs-Improvemnt Grants,DFG WORK TO SUPPLY AND INSTALL A STAIRLIFT AT ADDRESS REDACTED AS PER QUOTE SUPPLIED OF 5775.00,27/01/2021,0000462452,"5,775.00",Revenue,LANCS COUNTY COUNCIL,0
South Ribble Borough Council,http://statistics.data.gov.uk/id/local-authority/30UE,Capital,,Housing,Capital Grant,C570,Deferrd Chgs-Improvemnt Grants,DFG WORK TO SUPPLY AND INSTALL A STAIRLIFT AT ADDRESS REDACTED AS PER QUOTE SUPPLIED OF 6194.00,27/01/2021,0000462453,"5,983.00",Revenue,LANCS COUNTY COUNCIL,0
South Ribble Borough Council,http://statistics.data.gov.uk/id/local-authority/30UE,Capital,,Housing,Capital Grant,C570,Deferrd Chgs-Improvemnt Grants,DFG WORK TO SUPPLY AND INSTALL HOISTING EQUIP AT ADDRESS REDACTED AS PER QUOTE SUPPLIED OF 1026.00,27/01/2021,0000462454,"1,026.00",Revenue,LANCS COUNTY COUNCIL,0
South Ribble Borough Council,http://statistics.data.gov.uk/id/local-authority/30UE,Capital,,Housing,Capital Grant,C570,Deferrd Chgs-Improvemnt Grants,DFG WORK TO SUPPLY AND INSTALL STAIRLIFT AT ADDRESS REDACTED AS PER QUOTE SUPPLIED OF 5726.00,27/01/2021,0000462458,"5,286.00",Revenue,LANCS COUNTY COUNCIL,0
South Ribble Borough Council,http://statistics.data.gov.uk/id/local-authority/30UE,Capital,,Housing,Capital Grant,C570,Deferrd Chgs-Improvemnt Grants,DFG WORK TO SUPPLY AND INSTALL A STAIRLIFT AT ADDRESS REDACTED AS PER QUOTE SUPPLIED OF 3945.00,29/01/2021,0000462469,"3,945.00",Revenue,LANCS COUNTY COUNCIL,0
South Ribble Borough Council,http://statistics.data.gov.uk/id/local-authority/30UE,Central Support Services,,Area 2 - Waste Transport/Eastern & Central Teams,Materials General,4040,Furniture- Equip & Materials,1 x air bag YD19ATZ JFC15486,08/01/2021,0000461285,250.00,Revenue,LANCS DAF,0
South Ribble Borough Council,http://statistics.data.gov.uk/id/local-authority/30UE,Central Support Services,,Area 2 - Waste Transport/Eastern & Central Teams,External Contractors Charges,4570,Services,Spec repair RV14 DTZ JFC15835,08/01/2021,0000461409,"2,313.91",Revenue,LANCS DAF,0
South Ribble Borough Council,http://statistics.data.gov.uk/id/local-authority/30UE,Central Support Services,,Area 2 - Waste Transport/Eastern & Central Teams,Materials General,4040,Furniture- Equip & Materials,Headlamp surround panel (297.71) Lower bumper panel 410.94) LH Corner Panel (331.20) - YD19 AUT - JFC15927,13/01/2021,0000461545,"1,039.85",Revenue,LANCS DAF,0
South Ribble Borough Council,http://statistics.data.gov.uk/id/local-authority/30UE,Central Support Services,,Area 2 - Waste Transport/Eastern & Central Teams,Materials General,4040,Furniture- Equip & Materials,"1x EBS MODUAL, YE19 JPW, JFC15683",29/01/2021,0000462070,960.95,Revenue,LANCS DAF,0
South Ribble Borough Council,http://statistics.data.gov.uk/id/local-authority/30UE,Open Spaces,,Property Services,Professional Fees,4510,Services,Work: Volunteer management at Preston Junction Local Nature Reserve Amount: 6000 as per NAME REDACTED,29/01/2021,0000461410,"1,250.00",Revenue,LANCS WILDLIFE TRUST,0
South Ribble Borough Council,http://statistics.data.gov.uk/id/local-authority/30UE,Central Support Services,,Legal,Reference Books,4142,Printing- Stat & Office Expens,OKIES MAGISTERIAL FORMULIST LOOSE LEAF 9/12/20 - 8/12/21,22/01/2021,0000462308,"1,255.00",Revenue,LEXISNEXIS BUTTERWORTHS,0
South Ribble Borough Council,http://statistics.data.gov.uk/id/local-authority/30UE,Central Support Services,,HR & Communications,Short Course,1402,Training Expenses,NAME REDACTED TO ATTEND LG COMMS ACADEMY ONLINE ON 24-26 NOVEMBER 2020,06/01/2021,0000460380,100.00,Revenue,LGcomms,0
South Ribble Borough Council,http://statistics.data.gov.uk/id/local-authority/30UE,Central Support Services,,HR & Communications,Short Course,1402,Training Expenses,NAME REDACTED TO ATTEND LG COMMS ACADEMY ONLINE ON 24-26 NOVEMBER 2020,06/01/2021,0000460380,100.00,Revenue,LGcomms,0
South Ribble Borough Council,http://statistics.data.gov.uk/id/local-authority/30UE,Central Support Services,,HR & Communications,Short Course,1402,Training Expenses,NAME REDACTED TO ATTEND LG COMMS ACADEMY ONLINE ON 24-26 NOVEMBER 2020,06/01/2021,0000460380,100.00,Revenue,LGcomms,0
South Ribble Borough Council,http://statistics.data.gov.uk/id/local-authority/30UE,Democratic Represent and  Mgnt,,HR & Communications,Corp Subs to Professional Bodies,4720,Grants & Subscriptions,LGCOMMS MEMBERSHIP SUBSCRIPTION RENEWAL FOR 20/21,06/01/2021,0000460380,250.00,Revenue,LGcomms,0
South Ribble Borough Council,http://statistics.data.gov.uk/id/local-authority/30UE,Capital,,Housing,Capital Grant,C570,Deferrd Chgs-Improvemnt Grants,DFG WORK TO COMPLETE AGREED WORK TO ADAPT A BATHROOM  AT ADDRESS REDACTED PER QUOTE OF 4480.00,13/01/2021,0000461533,"4,230.00",Revenue,LTL CONSTRUCTION & MAINTENANCE LTD,0
South Ribble Borough Council,http://statistics.data.gov.uk/id/local-authority/30UE,Central Support Services,,Neighbourhood Admin & Support,Operational Equip & Tools,4010,Furniture- Equip & Materials,PADLOCKS  - SQUIRE 660 TO PASS KEY REDACTED,29/01/2021,0000462404,197.29,Revenue,M A C BUILDING PRODUCTS LTD,0
South Ribble Borough Council,http://statistics.data.gov.uk/id/local-authority/30UE,Central Support Services,,Neighbourhood Admin & Support,Operational Equip & Tools,4010,Furniture- Equip & Materials,PADLOCKS  - SQUIRE 660 TO PASS KEY REDACTED,29/01/2021,0000462404,151.76,Revenue,M A C BUILDING PRODUCTS LTD,0
South Ribble Borough Council,http://statistics.data.gov.uk/id/local-authority/30UE,Capital,,Housing,Capital Grant,C570,Deferrd Chgs-Improvemnt Grants,DISREPAIR GRANT FOR ROOF REPAIRS AT ADDRESS REDACTED AS PER QUOTE OF 5700.00- 50% COST COVERED,15/01/2021,0000462108,"2,850.00",Revenue,M J Harrison,0
South Ribble Borough Council,http://statistics.data.gov.uk/id/local-authority/30UE,Recreation & Sport,,Healthy Communities,Publicity & Promotion,4842,Miscellaneous Expenses,1 x Cyclo Portable Workstand 40 x Junior Helmets,15/01/2021,0000461970,503.79,Revenue,M&J Distributors Ltd,0
South Ribble Borough Council,http://statistics.data.gov.uk/id/local-authority/30UE,Capital,,Housing,Capital Grant,C570,Deferrd Chgs-Improvemnt Grants,DFG WORKS FOR BATHROOM ADAPTATION  AT ADDRESS REDACTED . New progress property so 50%  paid via the grant ,15/01/2021,0000462186,"2,287.52",Revenue,MAHONEY CONTRACTORS LTD,0
South Ribble Borough Council,http://statistics.data.gov.uk/id/local-authority/30UE,Capital,,Housing,Capital Grant,C570,Deferrd Chgs-Improvemnt Grants,DFG WORKS FOR LEVEL ACCESS SHOWER AT ADDRESS REDACTED New progress property so 50%  be paid via the grant ,29/01/2021,0000463630,"3,055.48",Revenue,MAHONEY CONTRACTORS LTD,0
South Ribble Borough Council,http://statistics.data.gov.uk/id/local-authority/30UE,Capital,,Housing,Capital Grant,C570,Deferrd Chgs-Improvemnt Grants,DFG WORKS FOR LEVEL ACCESS BATHROOM AT ADDRESS REDACTED New progress property so 50% paid via the grant,29/01/2021,0000463631,"3,105.16",Revenue,MAHONEY CONTRACTORS LTD,0
South Ribble Borough Council,http://statistics.data.gov.uk/id/local-authority/30UE,Capital,,Information Services,Misc Capital Payments,C234,Capital Other Land & Bldgs,Tiger Upgrade as per quote ref. 0056965,06/01/2021,0000461706,"5,000.00",Revenue,Maintel Europe Ltd,0
South Ribble Borough Council,http://statistics.data.gov.uk/id/local-authority/30UE,Surplus or Deficit on Trading,,Property Services,Consumable Clng Materials,2711,Cleaning & Domestic Supplies,Weekly cleaning of the toilets at Middleforth Industrial Estate from 1st April 2020 to 31st March 2021,13/01/2021,0000461848,290.00,Revenue,Mark Dobson T/A Penwortham Autotech,0
South Ribble Borough Council,http://statistics.data.gov.uk/id/local-authority/30UE,Economic Development,,Property Services,Investment & Improvement,485K,Miscellaneous Expenses,Please provide as per NAME REDACTED instruction leylandtowndeal.co.uk for 10 yrs leylandtowndeal.com for 10 yrs  ,08/01/2021,0000461768,407.97,Revenue,NAMESCO LTD,0
South Ribble Borough Council,http://statistics.data.gov.uk/id/local-authority/30UE,Central Support Services,,Area 2 - Waste Transport/Eastern & Central Teams,External Contractors Charges,4570,Services,SERVICE WASH 30.11.20 VO65 KPX JFC15913,06/01/2021,0000461526,65.00,Revenue,NAYLORS TRANSPORT (LEYLAND) ltd,0
South Ribble Borough Council,http://statistics.data.gov.uk/id/local-authority/30UE,Central Support Services,,Area 2 - Waste Transport/Eastern & Central Teams,External Contractors Charges,4570,Services,SERVICE WASH 1.12.20 VO65 KPZ JFC15914,06/01/2021,0000461526,65.00,Revenue,NAYLORS TRANSPORT (LEYLAND) ltd,0
South Ribble Borough Council,http://statistics.data.gov.uk/id/local-authority/30UE,Central Support Services,,Area 2 - Waste Transport/Eastern & Central Teams,External Contractors Charges,4570,Services,SERVICE WASH 4.12.20 PJ62 UCG JFC15915,06/01/2021,0000461526,65.00,Revenue,NAYLORS TRANSPORT (LEYLAND) ltd,0
South Ribble Borough Council,http://statistics.data.gov.uk/id/local-authority/30UE,Central Support Services,,Area 2 - Waste Transport/Eastern & Central Teams,External Contractors Charges,4570,Services,SERVICE WASH 9.12.20 PO20 ZRV JFC15916,06/01/2021,0000461526,65.00,Revenue,NAYLORS TRANSPORT (LEYLAND) ltd,0
South Ribble Borough Council,http://statistics.data.gov.uk/id/local-authority/30UE,Central Support Services,,Area 2 - Waste Transport/Eastern & Central Teams,External Contractors Charges,4570,Services,SERVICE WASH 10.12.20 PO70 YOG JFC15917,06/01/2021,0000461526,65.00,Revenue,NAYLORS TRANSPORT (LEYLAND) ltd,0
South Ribble Borough Council,http://statistics.data.gov.uk/id/local-authority/30UE,Central Support Services,,Area 2 - Waste Transport/Eastern & Central Teams,External Contractors Charges,4570,Services,SERVICE WASH 11.12.20 PO20 ZRZ JFC15918,06/01/2021,0000461526,65.00,Revenue,NAYLORS TRANSPORT (LEYLAND) ltd,0
South Ribble Borough Council,http://statistics.data.gov.uk/id/local-authority/30UE,Central Support Services,,Area 2 - Waste Transport/Eastern & Central Teams,External Contractors Charges,4570,Services,SERVICE WASH 15.12.20 PO20 ZRY JFC15919,06/01/2021,0000461526,65.00,Revenue,NAYLORS TRANSPORT (LEYLAND) ltd,0
South Ribble Borough Council,http://statistics.data.gov.uk/id/local-authority/30UE,Central Support Services,,Area 2 - Waste Transport/Eastern & Central Teams,External Contractors Charges,4570,Services,SERVICE WASH 16.12.20 VO65 KRF JFC15920,06/01/2021,0000461526,65.00,Revenue,NAYLORS TRANSPORT (LEYLAND) ltd,0
South Ribble Borough Council,http://statistics.data.gov.uk/id/local-authority/30UE,Central Support Services,,Area 2 - Waste Transport/Eastern & Central Teams,External Contractors Charges,4570,Services,SERVICE WASH 17.12.20 PF18 JOV JFC 15921,06/01/2021,0000461526,65.00,Revenue,NAYLORS TRANSPORT (LEYLAND) ltd,0
South Ribble Borough Council,http://statistics.data.gov.uk/id/local-authority/30UE,Central Support Services,,Area 2 - Waste Transport/Eastern & Central Teams,External Contractors Charges,4570,Services,SERVICE WASH 18.12.20 PO20 ZRX JFC15922,06/01/2021,0000461526,65.00,Revenue,NAYLORS TRANSPORT (LEYLAND) ltd,0
South Ribble Borough Council,http://statistics.data.gov.uk/id/local-authority/30UE,Central Support Services,,Area 2 - Waste Transport/Eastern & Central Teams,External Contractors Charges,4570,Services,Service Wash 03.12.2020 YE19JPW JFC15009,20/01/2021,0000462182,65.00,Revenue,NAYLORS TRANSPORT (LEYLAND) ltd,0
South Ribble Borough Council,http://statistics.data.gov.uk/id/local-authority/30UE,Central Support Services,,Area 2 - Waste Transport/Eastern & Central Teams,External Contractors Charges,4570,Services,Service Wash 09.12.2020 YD19AUN JFC16010,20/01/2021,0000462182,65.00,Revenue,NAYLORS TRANSPORT (LEYLAND) ltd,0
South Ribble Borough Council,http://statistics.data.gov.uk/id/local-authority/30UE,Central Support Services,,Area 2 - Waste Transport/Eastern & Central Teams,External Contractors Charges,4570,Services,Service Wash 11.12.2020 YA19NKC JFC16011,20/01/2021,0000462182,65.00,Revenue,NAYLORS TRANSPORT (LEYLAND) ltd,0
South Ribble Borough Council,http://statistics.data.gov.uk/id/local-authority/30UE,Central Support Services,,Area 2 - Waste Transport/Eastern & Central Teams,External Contractors Charges,4570,Services,Service Wash 14.12.2020 YD19 AUM JFC16012,20/01/2021,0000462182,65.00,Revenue,NAYLORS TRANSPORT (LEYLAND) ltd,0
South Ribble Borough Council,http://statistics.data.gov.uk/id/local-authority/30UE,Central Support Services,,Area 2 - Waste Transport/Eastern & Central Teams,External Contractors Charges,4570,Services,Service Wash 17.12.20 VA19KOX JFC16013,20/01/2021,0000462182,65.00,Revenue,NAYLORS TRANSPORT (LEYLAND) ltd,0
South Ribble Borough Council,http://statistics.data.gov.uk/id/local-authority/30UE,Central Support Services,,Area 2 - Waste Transport/Eastern & Central Teams,External Contractors Charges,4570,Services,Service Wash 22.12.20 VU60 HLE JFC16014,20/01/2021,0000462182,65.00,Revenue,NAYLORS TRANSPORT (LEYLAND) ltd,0
South Ribble Borough Council,http://statistics.data.gov.uk/id/local-authority/30UE,Democratic Represent and  Mgnt,,Democratic Services,Members Training,1406,Training Expenses,MEMBER/CABINET DEVELOPMENT TO TAKE PLACE OCTOBER/NOVEMBER 2020 AS PER QUOTE DATED 24 SEPT 2020,06/01/2021,0000461065,"4,050.00",Revenue,NORTH WEST EMPLOYERS,0
South Ribble Borough Council,http://statistics.data.gov.uk/id/local-authority/30UE,Central Support Services,,Neighbourhood Admin & Support,Materials General,4040,Furniture- Equip & Materials,CHANNEL BRUSH - 2.8 mm POLY & 3.3mm WIRE 5 row 700/1000mm - 78399/2,29/01/2021,0000462352,569.28,Revenue,NORTHERN MUNICIPAL SPARES LTD,0
South Ribble Borough Council,http://statistics.data.gov.uk/id/local-authority/30UE,Central Support Services,,Neighbourhood Admin & Support,Materials General,4040,Furniture- Equip & Materials,4 ROW CHANNEL BRUSH - C/W 4 NUTS/BOLTS - 835/66,29/01/2021,0000462352,259.20,Revenue,NORTHERN MUNICIPAL SPARES LTD,0
South Ribble Borough Council,http://statistics.data.gov.uk/id/local-authority/30UE,Central Support Services,,Neighbourhood Admin & Support,Materials General,4040,Furniture- Equip & Materials,FREIGHT,29/01/2021,0000462352,39.50,Revenue,NORTHERN MUNICIPAL SPARES LTD,0
South Ribble Borough Council,http://statistics.data.gov.uk/id/local-authority/30UE,Parking Services,,Area 1 - Penwortham Western Parishes,Parking Attendants,4514,Services,Deployment of officers November 2020,08/01/2021,0000461746,"1,566.59",Revenue,NSL LTD,0
South Ribble Borough Council,http://statistics.data.gov.uk/id/local-authority/30UE,Parking Services,,Area 1 - Penwortham Western Parishes,Cash Collection Charges Car Parks,4855,Miscellaneous Expenses,Cash collection and Ringo Charges- November 2020,08/01/2021,0000461746,462.46,Revenue,NSL LTD,0
South Ribble Borough Council,http://statistics.data.gov.uk/id/local-authority/30UE,Parking Services,,Area 1 - Penwortham Western Parishes,Cash Collection Charges Car Parks,4855,Miscellaneous Expenses,Ringo Convenience Charges- November 2020,08/01/2021,0000461746,136.81,Revenue,NSL LTD,0
South Ribble Borough Council,http://statistics.data.gov.uk/id/local-authority/30UE,Parking Services,,Area 1 - Penwortham Western Parishes,Parking Attendants,4514,Services,Deployment of officers December 2020,15/01/2021,0000462080,"1,333.19",Revenue,NSL LTD,0
South Ribble Borough Council,http://statistics.data.gov.uk/id/local-authority/30UE,Parking Services,,Area 1 - Penwortham Western Parishes,Cash Collection Charges Car Parks,4855,Miscellaneous Expenses,Cash Collection and Ringo Charges- December 2020,15/01/2021,0000462080,457.21,Revenue,NSL LTD,0
South Ribble Borough Council,http://statistics.data.gov.uk/id/local-authority/30UE,Parking Services,,Area 1 - Penwortham Western Parishes,Cash Collection Charges Car Parks,4855,Miscellaneous Expenses,Ringo Convenience Charges- December 2020,15/01/2021,0000462080,171.88,Revenue,NSL LTD,0
South Ribble Borough Council,http://statistics.data.gov.uk/id/local-authority/30UE,Open Spaces,,Area 1 - Penwortham Western Parishes,Security Service,4526,Services,PRICE PER CONTRACTED ITEMISED COLLECTION,15/01/2021,0000462080,41.04,Revenue,NSL LTD,0
South Ribble Borough Council,http://statistics.data.gov.uk/id/local-authority/30UE,Surplus or Deficit on Trading,,Property Services,Gas,2304,Energy Costs,5/12/19 to 6/10/20,29/01/2021,0000462477,460.50,Revenue,OPUS ENERGY LIMITED,0
South Ribble Borough Council,http://statistics.data.gov.uk/id/local-authority/30UE,Central Support Services,,Information Services,Applications Systems,4248,Communications & Comuting,Clearswift SECURE Email Gateway (SEG) subscription - Kaspersky - 500 users for period 28/11/20 - 27/11/21,13/01/2021,0000461984,"5,937.70",Revenue,Orange Cyberdefense UK,0
South Ribble Borough Council,http://statistics.data.gov.uk/id/local-authority/30UE,Central Support Services,,Revenues Plus,Computer Software,4242,Communications & Comuting,Web calculator,20/01/2021,0000462220,810.00,Revenue,OTECH LTD,0
South Ribble Borough Council,http://statistics.data.gov.uk/id/local-authority/30UE,Central Support Services,,Legal,Reference Books,4142,Printing- Stat & Office Expens,1 X OYEZ FORMS LIBRARY MAINTENANCE SUBSCRIPTION 1/02/2020 - 31/01/2021,27/01/2021,0000462456,754.69,Revenue,OYEZ PROFESSIONAL SERVICES,0
South Ribble Borough Council,http://statistics.data.gov.uk/id/local-authority/30UE,Central Support Services,,Legal,Reference Books,4142,Printing- Stat & Office Expens,"OYEZ ANNUAL LICENCE FEE CONVEYANCING - LAW SOCIETY TRANSACTION FORMS, & LAW SOCIETY FORMS",27/01/2021,0000462457,304.00,Revenue,OYEZ PROFESSIONAL SERVICES,0
South Ribble Borough Council,http://statistics.data.gov.uk/id/local-authority/30UE,Central Support Services,,Neighbourhood Admin & Support,Clothing and Uniforms,4410,"Clothes,uniform & laundry",disp glove- large,06/01/2021,0000461467,461.60,Revenue,Pattersons (Bristol) Ltd,0
South Ribble Borough Council,http://statistics.data.gov.uk/id/local-authority/30UE,Economic Development,,Property Services,Professional Fees,4510,Services,"For the provision of an ecological appraisal at Quinn Street, Leyland as detailed in the quotation sent to SRBC 30/10/2020",13/01/2021,0000462003,650.00,Revenue,Pennine Ecological (Bolton),0
South Ribble Borough Council,http://statistics.data.gov.uk/id/local-authority/30UE,Central Support Services,,HR & Communications,Occupational Health,1408,Training Expenses,"PROVISION OF WELLBEING, TELEPHONE CONSULTATIONS AND COUNSELLING ETC - OCTOBER 2020 - MARCH 2021",13/01/2021,0000461786,261.50,Revenue,People Asset Management,0
South Ribble Borough Council,http://statistics.data.gov.uk/id/local-authority/30UE,Central Support Services,,Information Services,Software Licensing,4243,Communications & Comuting,7 x Windows 7 Extended Security Updates 2021 M365 All Language License Per Device - 7 Licence @ 48.20 each for period ,13/01/2021,0000461525,337.40,Revenue,PHOENIX SOFTWARE LTD,0
South Ribble Borough Council,http://statistics.data.gov.uk/id/local-authority/30UE,Central Support Services,,Information Services,Software Licensing,4243,Communications & Comuting,"Sophos Safeguard Licences 1 year, as per quote 01179092",13/01/2021,0000461538,"3,396.94",Revenue,PHOENIX SOFTWARE LTD,0
South Ribble Borough Council,http://statistics.data.gov.uk/id/local-authority/30UE,Central Support Services,,Planning,Agency Staff,1121,Salaries,Consultancy work for planning enforcement services,06/01/2021,0000461528,"1,691.00",Revenue,Planning Control & PACE Solutions,0
South Ribble Borough Council,http://statistics.data.gov.uk/id/local-authority/30UE,Emergency Planning,,Shared Assurance Services,Subscriptions General,4721,Grants & Subscriptions,LRF Secretary post contribution for the period 2020/21. These costs incorporate an estimated police staff pay award of 2.5%,27/01/2021,0000459839,859.53,Revenue,POLICE & CRIME COMMISSIONER LANCS POLICE,0
South Ribble Borough Council,http://statistics.data.gov.uk/id/local-authority/30UE,Central Support Services,,Information Services,Paper Bulk,4133,Printing- Stat & Office Expens,"50,000 sheets Evolution Everyday A4 80gm 2500 sheets Evolution Everyday A3 80gm 10,000 sheets Evolution Business 90gm",22/01/2021,0000462275,344.78,Revenue,PREMIER PAPER GROUP LTD,0
South Ribble Borough Council,http://statistics.data.gov.uk/id/local-authority/30UE,Central Support Services,,Area 2 - Waste Transport/Eastern & Central Teams,External Contractors Charges,4570,Services,TR226- tyre repairs and replacements,06/01/2021,0000461397,672.30,Revenue,PRESTON TYRE SPECIALISTS,0
South Ribble Borough Council,http://statistics.data.gov.uk/id/local-authority/30UE,Central Support Services,,Area 2 - Waste Transport/Eastern & Central Teams,Materials General,4040,Furniture- Equip & Materials,10x for TR225,06/01/2021,0000461449,645.60,Revenue,PRESTON TYRE SPECIALISTS,0
South Ribble Borough Council,http://statistics.data.gov.uk/id/local-authority/30UE,Homelessness,,Homelessness,Void Loss,5313,Contractors Chges,Agreed void loss Interim accommodation Progress properties 6/4/20-5/7/20 2867.30 6/7/20-4/10/20  14.66,06/01/2021,0000461474,"2,867.30",Revenue,PROGRESS HOUSING GRP ref:REDACTED,0
South Ribble Borough Council,http://statistics.data.gov.uk/id/local-authority/30UE,Homelessness,,Homelessness,Other Fees,4520,Services,Agreed payment of Annual fee,06/01/2021,0000461718,"9,703.94",Revenue,PROGRESS HOUSING GRP ref:REDACTED,0
South Ribble Borough Council,http://statistics.data.gov.uk/id/local-authority/30UE,Capital,,Property Services,Cap Contract Payment,C230,Capital Other Land & Bldgs,Please manufacture a new door and frame to the brewhouse worden park as per quotation Q2972,20/01/2021,0000461539,780.00,Revenue,PSR & Sons Joiners & Building Contractors,0
South Ribble Borough Council,http://statistics.data.gov.uk/id/local-authority/30UE,Surplus or Deficit on Trading,,Property Services,Reactive Repair & Maintenance,2020,Premises Repair & Mtne,"LABOUR Please supply and install new hinges and ease the door at farmyard cottages, Worden Park as per quotation Q2972",20/01/2021,0000461539,95.00,Revenue,PSR & Sons Joiners & Building Contractors,0
South Ribble Borough Council,http://statistics.data.gov.uk/id/local-authority/30UE,Central Support Services,,Property Services,Reactive Repair & Maintenance,2020,Premises Repair & Mtne,Please carry out works as per quote LRS Q 3199 as per NAME REDACTED Put in place any appropriate signage or barriers to ,29/01/2021,0000461540,"20,610.00",Revenue,PSR & Sons Joiners & Building Contractors,0
South Ribble Borough Council,http://statistics.data.gov.uk/id/local-authority/30UE,Central Support Services,,Property Services,Reactive Repair & Maintenance,2020,Premises Repair & Mtne,LABOUR,29/01/2021,0000461540,"2,000.00",Revenue,PSR & Sons Joiners & Building Contractors,0
South Ribble Borough Council,http://statistics.data.gov.uk/id/local-authority/30UE,Central Support Services,,Property Services,Reactive Repair & Maintenance,2020,Premises Repair & Mtne,Carry out works at Civic Centre To Supply and Install 16 no HFX Locks. To Install new Glazing and install Frame Replacements x 2.,29/01/2021,0000462233,"4,000.00",Revenue,PSR & Sons Joiners & Building Contractors,0
South Ribble Borough Council,http://statistics.data.gov.uk/id/local-authority/30UE,Central Support Services,,Property Services,Reactive Repair & Maintenance,2020,Premises Repair & Mtne,LABOUR,29/01/2021,0000462233,235.00,Revenue,PSR & Sons Joiners & Building Contractors,0
South Ribble Borough Council,http://statistics.data.gov.uk/id/local-authority/30UE,Central Support Services,,Property Services,Reactive Repair & Maintenance,2020,Premises Repair & Mtne,Please carry out works as per quote LRS Q 3199 as per NAME REDACTED Put in place any appropriate signage or barriers to ,29/01/2021,0000462483,"1,700.00",Revenue,PSR & Sons Joiners & Building Contractors,0
South Ribble Borough Council,http://statistics.data.gov.uk/id/local-authority/30UE,Central Support Services,,Property Services,Reactive Repair & Maintenance,2020,Premises Repair & Mtne,materials,29/01/2021,0000462483,172.00,Revenue,PSR & Sons Joiners & Building Contractors,0
South Ribble Borough Council,http://statistics.data.gov.uk/id/local-authority/30UE,Capital,,Regeneration,Cap Contract Payment,C230,Capital Other Land & Bldgs,Please undertake the ``Worden hall refurbishment project part to RIBA stage 3``,15/01/2021,0000461536,"3,594.00",Revenue,Purcell Architecture Limited,0
South Ribble Borough Council,http://statistics.data.gov.uk/id/local-authority/30UE,Central Support Services,,Information Services,Franked Post,4292,Communications & Comuting,Franking machine top up payment & RM underpayment charge 14/12/20 to 20/1/21,29/01/2021,0000463657,"9,095.45",Revenue,Purchase Power,0
South Ribble Borough Council,http://statistics.data.gov.uk/id/local-authority/30UE,Central Support Services,,Area 2 - Waste Transport/Eastern & Central Teams,External Contractors Charges,4570,Services,System rental and Communications Charge - 60 vehicles for 3 months from 1.1.21 - 31.3.20,08/01/2021,0000461831,"2,070.00",Revenue,Quartix,0
South Ribble Borough Council,http://statistics.data.gov.uk/id/local-authority/30UE,Open Spaces,,Area 3 - Parks/Leyland East West,Hiring Expenses,3212,Contract Hire & Operating Leas,Hire of 1.8T excavator from Wednesday 11th November 2020 for 1 week.,06/01/2021,0000461116,468.00,Revenue,Readyplant Limited,0
South Ribble Borough Council,http://statistics.data.gov.uk/id/local-authority/30UE,Open Spaces,,Area 3 - Parks/Leyland East West,Hiring Expenses,3212,Contract Hire & Operating Leas,Hire of 1.8T excavator from  Wednesday 21st October 2020 for 1 week,22/01/2021,0000462370,288.00,Revenue,Readyplant Limited,0
South Ribble Borough Council,http://statistics.data.gov.uk/id/local-authority/30UE,Open Spaces,,Area 3 - Parks/Leyland East West,Hiring Expenses,3212,Contract Hire & Operating Leas,Hire of 1.8T excavator from 29/09/2020 To be delivered to Worden Park (and collect 3T excavator which has been off hired 28.9.20),22/01/2021,0000462373,580.00,Revenue,Readyplant Limited,0
South Ribble Borough Council,http://statistics.data.gov.uk/id/local-authority/30UE,Surplus or Deficit on Trading,,Property Services,Investment & Improvement,485K,Miscellaneous Expenses,Please put in two rows of speed bumps at Heaton industrial estate,06/01/2021,0000461134,"1,050.00",Revenue,RED ROSE BUILDING MAINTENANCE,0
South Ribble Borough Council,http://statistics.data.gov.uk/id/local-authority/30UE,Surplus or Deficit on Trading,,Property Services,Investment & Improvement,485K,Miscellaneous Expenses,LABOUR,06/01/2021,0000461134,400.00,Revenue,RED ROSE BUILDING MAINTENANCE,0
South Ribble Borough Council,http://statistics.data.gov.uk/id/local-authority/30UE,Surplus or Deficit on Trading,,Property Services,Reactive Repair & Maintenance,2020,Premises Repair & Mtne,Please clean out 3 separate sets of concrete drain channels at heaton street,06/01/2021,0000461473,300.00,Revenue,RED ROSE BUILDING MAINTENANCE,0
South Ribble Borough Council,http://statistics.data.gov.uk/id/local-authority/30UE,Surplus or Deficit on Trading,,Property Services,Reactive Repair & Maintenance,2020,Premises Repair & Mtne,Annual Contract 2020/2021 for the service of the dog wash at Worden Park - please provide photographic evidence as required,13/01/2021,0000461842,475.00,Revenue,RED ROSE BUILDING MAINTENANCE,0
South Ribble Borough Council,http://statistics.data.gov.uk/id/local-authority/30UE,Surplus or Deficit on Trading,,Property Services,Reactive Repair & Maintenance,2020,Premises Repair & Mtne,,13/01/2021,0000461842,75.00,Revenue,RED ROSE BUILDING MAINTENANCE,0
South Ribble Borough Council,http://statistics.data.gov.uk/id/local-authority/30UE,Central Support Services,,Property Services,Planned Repair & Maintenance,2021,Premises Repair & Mtne,Annual Contract 2020/2021 for the service of grease trap at Civic Centre,13/01/2021,0000461845,225.00,Revenue,RED ROSE BUILDING MAINTENANCE,0
South Ribble Borough Council,http://statistics.data.gov.uk/id/local-authority/30UE,Central Support Services,,Property Services,Planned Repair & Maintenance,2021,Premises Repair & Mtne,LABOUR,13/01/2021,0000461845,75.00,Revenue,RED ROSE BUILDING MAINTENANCE,0
South Ribble Borough Council,http://statistics.data.gov.uk/id/local-authority/30UE,Homelessness,,Homelessness,Temporary Accommodation,5311,Contractors Chges,NAME REDACTED agreed rent Jan-Marc 2021,06/01/2021,0000461154,"5,624.90",Revenue,REDDY & CO,0
South Ribble Borough Council,http://statistics.data.gov.uk/id/local-authority/30UE,Tourism,,Property Services,Fuel Oil,2301,Energy Costs,"3,000L of Kerosene for Worden Hall /Derby Wing Delivery by is on Friday 22nd January 2021 call NAME REDACTED for access",27/01/2021,0000462358,"1,288.50",Revenue,RIBBLE FUEL OILS,0
South Ribble Borough Council,http://statistics.data.gov.uk/id/local-authority/30UE,Central Support Services,,Information Services,IT Consumables,413A,Printing- Stat & Office Expens,MP C8003SP,13/01/2021,0000461854,"3,862.97",Revenue,RICOH (UK) LTD,0
South Ribble Borough Council,http://statistics.data.gov.uk/id/local-authority/30UE,Central Support Services,,Neighbourhood Admin & Support,Operational Equip & Tools,4010,Furniture- Equip & Materials,BAG LOOP - B05DL110,29/01/2021,0000462466,270.00,Revenue,ROBERT ACTON PRODUCTS DEVELOPMENTS,0
South Ribble Borough Council,http://statistics.data.gov.uk/id/local-authority/30UE,Central Support Services,,Neighbourhood Admin & Support,Operational Equip & Tools,4010,Furniture- Equip & Materials,Carriage,29/01/2021,0000462466,10.00,Revenue,ROBERT ACTON PRODUCTS DEVELOPMENTS,0
South Ribble Borough Council,http://statistics.data.gov.uk/id/local-authority/30UE,Central Support Services,,Information Services,Business Reply Services,4295,Communications & Comuting,15 dec 2020,13/01/2021,0000461481,333.33,Revenue,ROYAL MAIL GROUP PLC,0
South Ribble Borough Council,http://statistics.data.gov.uk/id/local-authority/30UE,Elections,,Democratic Services,Postage General,4291,Communications & Comuting,NON ELECTION POSTAGE COSTS,15/01/2021,0000462020,885.17,Revenue,ROYAL MAIL GROUP PLC,0
South Ribble Borough Council,http://statistics.data.gov.uk/id/local-authority/30UE,Central Support Services,,Information Services,Business Reply Services,4295,Communications & Comuting,licence fee,22/01/2021,0000462276,333.33,Revenue,ROYAL MAIL GROUP PLC,0
South Ribble Borough Council,http://statistics.data.gov.uk/id/local-authority/30UE,Development Control,,Planning,Legal,4821,Miscellaneous Expenses,ADAS representation for Planning Appeal at ADDRESS REDACTED,06/01/2021,0000461531,895.00,Revenue,RSK ADAS Ltd,0
South Ribble Borough Council,http://statistics.data.gov.uk/id/local-authority/30UE,Central Support Services,,HR & Communications,Individual Subs Prof. Bodies,1741,Other Employee Expenses,MEMBERSHIP SUBSCRIPTION RENEWAL FOR NAME REDACTED - MEMBERSHIP NUMBER REDACTED,13/01/2021,0000461765,315.00,Revenue,RTPI,0
South Ribble Borough Council,http://statistics.data.gov.uk/id/local-authority/30UE,Central Support Services,,HR & Communications,Individual Subs Prof. Bodies,1741,Other Employee Expenses,MEMBERSHIP SUBSCRIPTION RENEWAL FOR NAME REDACTED - MEMBERSHIP NUMBER REDACTED,13/01/2021,0000461769,315.00,Revenue,RTPI,0
South Ribble Borough Council,http://statistics.data.gov.uk/id/local-authority/30UE,Central Support Services,,HR & Communications,Individual Subs Prof. Bodies,1741,Other Employee Expenses,MEMBERSHIP SUBSCRIPTION RENEWAL FOR NAME REDACTED - MEMBERSHIP NUMBER REDACTED,13/01/2021,0000461770,315.00,Revenue,RTPI,0
South Ribble Borough Council,http://statistics.data.gov.uk/id/local-authority/30UE,Central Support Services,,HR & Communications,Individual Subs Prof. Bodies,1741,Other Employee Expenses,MEMBERSHIP SUBSCRIPTION RENEWAL FOR NAME REDACTED - MEMBERSHIP NUMBER REDACTED,13/01/2021,0000461772,315.00,Revenue,RTPI,0
South Ribble Borough Council,http://statistics.data.gov.uk/id/local-authority/30UE,Central Support Services,,HR & Communications,Individual Subs Prof. Bodies,1741,Other Employee Expenses,MEMBERSHIP SUBSCRIPTION RENEWAL FOR NAME REDACTED - MEMBERSHIP NUMBER REDACTED,13/01/2021,0000461776,315.00,Revenue,RTPI,0
South Ribble Borough Council,http://statistics.data.gov.uk/id/local-authority/30UE,Central Support Services,,Legal,Legal,4821,Miscellaneous Expenses,"PROFESSIONAL SERVICES IN RELATION TO POTENTIAL JR AT ORCHARD FARM, RATTEN LANE",13/01/2021,0000462059,800.00,Revenue,RUTH STOCKLEY,0
South Ribble Borough Council,http://statistics.data.gov.uk/id/local-authority/30UE,Central Support Services,,Area 2 - Waste Transport/Eastern & Central Teams,Materials General,4040,Furniture- Equip & Materials,1000 ltrs Premium Hi Foam TFR with wax,22/01/2021,0000462338,911.15,Revenue,Saanro International Ltd,0
South Ribble Borough Council,http://statistics.data.gov.uk/id/local-authority/30UE,Central Support Services,,Area 2 - Waste Transport/Eastern & Central Teams,Materials General,4040,Furniture- Equip & Materials,2 x High Pressure Hose @ 75.81 BIN551,27/01/2021,0000462430,151.62,Revenue,Saanro International Ltd,0
South Ribble Borough Council,http://statistics.data.gov.uk/id/local-authority/30UE,Central Support Services,,Area 2 - Waste Transport/Eastern & Central Teams,Materials General,4040,Furniture- Equip & Materials,2 x High Pressure Trigger Gun@ 80.90 Bin 552,27/01/2021,0000462430,161.80,Revenue,Saanro International Ltd,0
South Ribble Borough Council,http://statistics.data.gov.uk/id/local-authority/30UE,Short Term Debtors,,Property Services,Amount Paid,0030,Balance Sheet,To supply  continued Commercial Estates support for the Test Track mixed use development as per NAME REDACTED,20/01/2021,0000462206,"3,595.00",Revenue,Sanderson Weatherall LLP,0
South Ribble Borough Council,http://statistics.data.gov.uk/id/local-authority/30UE,Short Term Debtors,,Property Services,Amount Paid,0030,Balance Sheet,disbursements,20/01/2021,0000462206,6.00,Revenue,Sanderson Weatherall LLP,0
South Ribble Borough Council,http://statistics.data.gov.uk/id/local-authority/30UE,Short Term Debtors,,Property Services,Amount Paid,0030,Balance Sheet,To supply  continued Commercial Estates support for the Test Track mixed use development as per NAME REDACTED,20/01/2021,0000462207,691.67,Revenue,Sanderson Weatherall LLP,0
South Ribble Borough Council,http://statistics.data.gov.uk/id/local-authority/30UE,Short Term Debtors,,Property Services,Amount Paid,0030,Balance Sheet,To supply  continued Commercial Estates support for the Test Track mixed use development as per NAME REDACTED,20/01/2021,0000462208,516.55,Revenue,Sanderson Weatherall LLP,0
South Ribble Borough Council,http://statistics.data.gov.uk/id/local-authority/30UE,Recreation & Sport,,Development Enterprise & Comm Mgnt,Serco Leisure Operating Ltd-R&M-Core Fee,4536,Services,R & M for 2020/2021,13/01/2021,0000461760,"14,801.50",Revenue,SERCO LEISURE (OP) LTD,0
South Ribble Borough Council,http://statistics.data.gov.uk/id/local-authority/30UE,Central Support Services,,Information Services,Other Fees,4520,Services,Shredding of Confidential Waste 2020/21,13/01/2021,0000458789,481.78,Revenue,SHRED-IT LTD,0
South Ribble Borough Council,http://statistics.data.gov.uk/id/local-authority/30UE,Recreation & Sport,,Development Enterprise & Comm Mgnt,Leisure Services Fee - Core Fee,4532,Services,Leisure Services Fee 2020/2021,13/01/2021,0000461761,"24,780.09",Revenue,SOUTH RIBBLE COMMUNITY LEISURE LTD,0
South Ribble Borough Council,http://statistics.data.gov.uk/id/local-authority/30UE,Short Term Creditors,,Shared Financial Services,Amount Paid,0030,Balance Sheet,deds from payroll,13/01/2021,0000461542,"1,496.66",Revenue,SOUTH RIBBLE LABOUR PARTY LOCAL GOVERNM,0
South Ribble Borough Council,http://statistics.data.gov.uk/id/local-authority/30UE,Central Support Services,,Neighbourhood Admin & Support,Materials General,4040,Furniture- Equip & Materials,GRAFFITI WIPES - 30164,15/01/2021,0000461956,54.80,Revenue,SPALDINGS,0
South Ribble Borough Council,http://statistics.data.gov.uk/id/local-authority/30UE,Central Support Services,,Neighbourhood Admin & Support,Materials General,4040,Furniture- Equip & Materials,HAND WIPES (200 TUB) - WET WIPES - 30008,15/01/2021,0000461956,526.68,Revenue,SPALDINGS,0
South Ribble Borough Council,http://statistics.data.gov.uk/id/local-authority/30UE,Short Term Creditors,,Shared Financial Services,Amount Paid,0030,Balance Sheet,monthly deds from payroll,13/01/2021,0000461522,416.64,Revenue,ST CATHERINES HOSPICE PROMOTIONS LTD,0
South Ribble Borough Council,http://statistics.data.gov.uk/id/local-authority/30UE,Service Management & Support,,Neighbourhood Admin & Support,Diesel Fuel,3132,Direct Transport Costs,16000 litres diesel @ 90.17 ppl into the feeder tank at Unit 81 Bison Place Moss Side-REDACTED,06/01/2021,0000461450,"14,427.20",Revenue,Standard Fuel Oils LtdMain,0
South Ribble Borough Council,http://statistics.data.gov.uk/id/local-authority/30UE,Service Management & Support,,Neighbourhood Admin & Support,Diesel Fuel,3132,Direct Transport Costs,16000 litres diesel @91.47ppl into the feeder tank at Unit  81 Bison Place Moss Side- REDACTED,06/01/2021,0000461529,"14,702.40",Revenue,Standard Fuel Oils LtdMain,0
South Ribble Borough Council,http://statistics.data.gov.uk/id/local-authority/30UE,Service Management & Support,,Neighbourhood Admin & Support,Diesel Fuel,3132,Direct Transport Costs,16000 litres diesel @ 91.32ppl into the feeder tank at Unit 81 Bison Place Moss Side- REDACTED,15/01/2021,0000462021,"14,785.62",Revenue,Standard Fuel Oils LtdMain,0
South Ribble Borough Council,http://statistics.data.gov.uk/id/local-authority/30UE,Service Management & Support,,Neighbourhood Admin & Support,Diesel Fuel,3132,Direct Transport Costs,16000 litres diesel @ 92.30ppl into the  feeder tank at Unit 81 Bison Place Moss  Side- REDACTED,22/01/2021,0000462227,"14,897.22",Revenue,Standard Fuel Oils LtdMain,0
South Ribble Borough Council,http://statistics.data.gov.uk/id/local-authority/30UE,Capital,,Regeneration,Cap Contract Payment,C230,Capital Other Land & Bldgs,Description: to create 5m wide x 5m high clearance around existing foot way Moss Side Leyland as per NAME REDACTED,13/01/2021,0000461998,"2,500.00",Revenue,Stephen Pye Tree Services,0
South Ribble Borough Council,http://statistics.data.gov.uk/id/local-authority/30UE,Capital,,Healthy Communities,Cap Contract Payment,C230,Capital Other Land & Bldgs,Description: Fees to planning approval and Fees for tender stage. As per NAME REDACTED,06/01/2021,0000461191,"17,765.00",Revenue,Steve Wells Associates Ltd,0
South Ribble Borough Council,http://statistics.data.gov.uk/id/local-authority/30UE,Capital,,Healthy Communities,Cap Contract Payment,C230,Capital Other Land & Bldgs,Description: Fees to planning approval and Fees for tender stage. As per NAME REDACTED,22/01/2021,0000462238,"5,836.40",Revenue,Steve Wells Associates Ltd,0
South Ribble Borough Council,http://statistics.data.gov.uk/id/local-authority/30UE,Capital,,Healthy Communities,Cap Contract Payment,C230,Capital Other Land & Bldgs,Professional services needed in developing the Playing Pitch Hub facilities at Bamber Bridge.As per NAMES REDACTED,27/01/2021,0000462239,"6,323.60",Revenue,Steve Wells Associates Ltd,0
South Ribble Borough Council,http://statistics.data.gov.uk/id/local-authority/30UE,Surplus or Deficit on Trading,,Property Services,Rents,2401,Rents & Rates,"Rental fees from September 2020 until 31st March 2021 for Forward industrial estate, Talbot Road, Leyland PR25 2ZJ. ",06/01/2021,0000461198,"16,147.50",Revenue,STONEWELL PROPERTY COMPANY LTD (In Administration),0
South Ribble Borough Council,http://statistics.data.gov.uk/id/local-authority/30UE,Surplus or Deficit on Trading,,Property Services,Rents,2401,Rents & Rates,less ground rent,06/01/2021,0000461198,"-2,850.00",Revenue,STONEWELL PROPERTY COMPANY LTD (In Administration),0
South Ribble Borough Council,http://statistics.data.gov.uk/id/local-authority/30UE,Capital,,Housing,Capital Grant,C570,Deferrd Chgs-Improvemnt Grants,DFG WORK TO ADAPT BATHROOM FOR LEVEL ACCESS SHOWER AT ADDRESS REDACTED 50% YHG FUNDED,13/01/2021,0000461521,"2,164.85",Revenue,Structec (NW) Limited,0
South Ribble Borough Council,http://statistics.data.gov.uk/id/local-authority/30UE,Recreation & Sport,,Property Services,Reactive Repair & Maintenance,2020,Premises Repair & Mtne,Rental fees for the anti vandal toilet unit & tank located at Penwortham Holme ref 523-302704,13/01/2021,0000461755,271.40,Revenue,Sunbelt Rentals UK Ltd,0
South Ribble Borough Council,http://statistics.data.gov.uk/id/local-authority/30UE,Capital,,Regeneration,Cap Contract Payment,C230,Capital Other Land & Bldgs,"Please undertake the topographical & underground utility scanning/GPR survey for all buried services, to guideline PAS 128:2014",13/01/2021,0000460658,850.00,Revenue,SURVEY OPERATIONS LTD,0
South Ribble Borough Council,http://statistics.data.gov.uk/id/local-authority/30UE,Central Support Services,,Area 2 - Waste Transport/Eastern & Central Teams,Materials General,4040,Furniture- Equip & Materials,BIN CLAMP SPRING - VO65KRE- JFC15940,13/01/2021,0000461846,398.50,Revenue,Taylor Enginering & Fabrications Ltd,0
South Ribble Borough Council,http://statistics.data.gov.uk/id/local-authority/30UE,Central Support Services,,Area 2 - Waste Transport/Eastern & Central Teams,External Contractors Charges,4570,Services,Calibration RBT and Headlight Lamp,20/01/2021,0000462062,377.00,Revenue,Tecalemit Garage Equipment Company Limited,0
South Ribble Borough Council,http://statistics.data.gov.uk/id/local-authority/30UE,Community Development,,Regeneration,Miscellaneous Expenses,4851,Miscellaneous Expenses,"Tempo Time Credits 13,916.50 + VAT Q2 2020-2021 13,916.50 + VAT Q3 2020/2021 13,916.50 + VAT Q4 2020/2021",29/01/2021,0000461420,"13,916.50",Revenue,Tempo Time Credits Ltd,0
South Ribble Borough Council,http://statistics.data.gov.uk/id/local-authority/30UE,Central Support Services,,Neighbourhood Admin & Support,Operational Equip & Tools,4010,Furniture- Equip & Materials,LITTER PICKER - RANGER MAX - LP3035 - 35``,29/01/2021,0000462418,523.20,Revenue,The Helping Hand Company,0
South Ribble Borough Council,http://statistics.data.gov.uk/id/local-authority/30UE,Community Development,,Regeneration,Core Fund,4861,Miscellaneous Expenses,Drawdown remaining 2019 grant - Samlesbury Area Civic Society for gardening materials and equipment for the community garden,29/01/2021,0000462444,330.00,Revenue,The Samlesbury Area Civic Society,0
South Ribble Borough Council,http://statistics.data.gov.uk/id/local-authority/30UE,Central Support Services,,Legal,Reference Books,4142,Printing- Stat & Office Expens,Aldridge R71,22/01/2021,0000462097,576.00,Revenue,THOMSON REUTERS,0
South Ribble Borough Council,http://statistics.data.gov.uk/id/local-authority/30UE,Central Support Services,,Legal,Reference Books,4142,Printing- Stat & Office Expens,ANNUAL SUBSCRIPTION TO: ONLINE WESTLAW UK SERVICES - 2021 ONLINE PRACTICAL LAW SERVICES - 2021,22/01/2021,0000462253,"13,122.98",Revenue,THOMSON REUTERS,0
South Ribble Borough Council,http://statistics.data.gov.uk/id/local-authority/30UE,Central Support Services,,Shared Financial Services,Electricity,2303,Energy Costs,1/11/20 to 30/11/20,13/01/2021,0000460978,"3,515.70",Revenue,Total Gas & power Ltd,0
South Ribble Borough Council,http://statistics.data.gov.uk/id/local-authority/30UE,Central Support Services,,Shared Financial Services,Climate Change Levy,2307,Energy Costs,CCL,13/01/2021,0000460978,188.05,Revenue,Total Gas & power Ltd,0
South Ribble Borough Council,http://statistics.data.gov.uk/id/local-authority/30UE,Open Spaces,,Property Services,Electricity,2303,Energy Costs,1/12/20 to 31/12/20,13/01/2021,0000461933,521.66,Revenue,Total Gas & power Ltd,0
South Ribble Borough Council,http://statistics.data.gov.uk/id/local-authority/30UE,Open Spaces,,Property Services,Climate Change Levy,2307,Energy Costs,CCL,13/01/2021,0000461933,22.72,Revenue,Total Gas & power Ltd,0
South Ribble Borough Council,http://statistics.data.gov.uk/id/local-authority/30UE,Central Support Services,,Property Services,Electricity,2303,Energy Costs,30/11/20 to 31/12/20,13/01/2021,0000461961,"2,251.32",Revenue,Total Gas & power Ltd,0
South Ribble Borough Council,http://statistics.data.gov.uk/id/local-authority/30UE,Central Support Services,,Property Services,Climate Change Levy,2307,Energy Costs,CCL,13/01/2021,0000461961,272.39,Revenue,Total Gas & power Ltd,0
South Ribble Borough Council,http://statistics.data.gov.uk/id/local-authority/30UE,Central Support Services,,Property Services,Electricity,2303,Energy Costs,,13/01/2021,0000461965,"3,494.29",Revenue,Total Gas & power Ltd,0
South Ribble Borough Council,http://statistics.data.gov.uk/id/local-authority/30UE,Central Support Services,,Property Services,Climate Change Levy,2307,Energy Costs,CCL,13/01/2021,0000461965,187.02,Revenue,Total Gas & power Ltd,0
South Ribble Borough Council,http://statistics.data.gov.uk/id/local-authority/30UE,Economic Development,,Property Services,Electricity,2303,Energy Costs,1/12/20 to 31/12/20,13/01/2021,0000461967,930.15,Revenue,Total Gas & power Ltd,0
South Ribble Borough Council,http://statistics.data.gov.uk/id/local-authority/30UE,Economic Development,,Property Services,Climate Change Levy,2307,Energy Costs,CCL,13/01/2021,0000461967,42.54,Revenue,Total Gas & power Ltd,0
South Ribble Borough Council,http://statistics.data.gov.uk/id/local-authority/30UE,Central Support Services,,Property Services,Electricity,2303,Energy Costs,1/121 to 31/12/20,13/01/2021,0000461968,"2,596.90",Revenue,Total Gas & power Ltd,0
South Ribble Borough Council,http://statistics.data.gov.uk/id/local-authority/30UE,Central Support Services,,Property Services,Climate Change Levy,2307,Energy Costs,CCL,13/01/2021,0000461968,145.08,Revenue,Total Gas & power Ltd,0
South Ribble Borough Council,http://statistics.data.gov.uk/id/local-authority/30UE,Open Spaces,,Property Services,Electricity,2303,Energy Costs,1/12/20 to 31/12/20,15/01/2021,0000462189,262.90,Revenue,Total Gas & power Ltd,0
South Ribble Borough Council,http://statistics.data.gov.uk/id/local-authority/30UE,Open Spaces,,Property Services,Climate Change Levy,2307,Energy Costs,CCL,15/01/2021,0000462189,12.91,Revenue,Total Gas & power Ltd,0
South Ribble Borough Council,http://statistics.data.gov.uk/id/local-authority/30UE,Service Management & Support,,Neighbourhood Admin & Support,External Contractors Charges,4570,Services,ANNUAL ODYSSEY LICENCE RENEWAL FUEL SYSTEM - MOSS SIDE DEPOT. 3.3.2021 - 2.3.2022,08/01/2021,0000461777,"1,379.15",Revenue,TRISCAN SYSTEMS LIMITED,0
South Ribble Borough Council,http://statistics.data.gov.uk/id/local-authority/30UE,Regulatory Services,,Environmental Health,Analyst Fee,4542,Services,"Water Samples  to Dec,",06/01/2021,0000461543,403.24,Revenue,UNITED UTILITIES WATER PLC,0
South Ribble Borough Council,http://statistics.data.gov.uk/id/local-authority/30UE,Democratic Represent and  Mgnt,,Property Services,Rental,4012,Furniture- Equip & Materials,2020 / 2021 annual contract for the monthly rental of hot drinks machines at the civic centre including environmental charge.,08/01/2021,0000461714,291.98,Revenue,VENDING ENTERPRISES,0
South Ribble Borough Council,http://statistics.data.gov.uk/id/local-authority/30UE,Central Support Services,,Information Services,Telecomms- land lines,4269,Communications & Comuting,21 dec 2020,08/01/2021,0000461737,"2,345.69",Revenue,VODAFONE RE:CABLE & WIRELESS UK,0
South Ribble Borough Council,http://statistics.data.gov.uk/id/local-authority/30UE,Central Support Services,,Information Services,Network and Security,4247,Communications & Comuting,01 jan21,08/01/2021,0000461739,"2,404.20",Revenue,VODAFONE RE:CABLE & WIRELESS UK,0
South Ribble Borough Council,http://statistics.data.gov.uk/id/local-authority/30UE,Central Support Services,,Information Services,Network and Security,4247,Communications & Comuting,01 Jan 2020,08/01/2021,0000461740,"2,252.86",Revenue,VODAFONE RE:CABLE & WIRELESS UK,0
South Ribble Borough Council,http://statistics.data.gov.uk/id/local-authority/30UE,Central Support Services,,Information Services,Telecomms- land lines,4269,Communications & Comuting,26 Jan 2021,29/01/2021,0000462467,"3,173.82",Revenue,VODAFONE RE:CABLE & WIRELESS UK,0
South Ribble Borough Council,http://statistics.data.gov.uk/id/local-authority/30UE,Surplus or Deficit on Trading,,Property Services,Water Charges(Metered),2511,Water,26/12/19 to 7/10/20,08/01/2021,0000460805,457.24,Revenue,WATER PLUS,0
South Ribble Borough Council,http://statistics.data.gov.uk/id/local-authority/30UE,Economic Development,,Property Services,Water Charges(Metered),2511,Water,19/2/20 TO 17/8/20,08/01/2021,0000460808,407.46,Revenue,WATER PLUS,0
South Ribble Borough Council,http://statistics.data.gov.uk/id/local-authority/30UE,Central Support Services,,Property Services,Water Charges(Metered),2511,Water,13/2/20 TO 15/11/20,08/01/2021,0000460818,"1,976.52",Revenue,WATER PLUS,0
South Ribble Borough Council,http://statistics.data.gov.uk/id/local-authority/30UE,Economic Development,,Property Services,Water Charges(Metered),2511,Water,18/8/20 to 8/11/20,08/01/2021,0000461109,516.34,Revenue,WATER PLUS,0
South Ribble Borough Council,http://statistics.data.gov.uk/id/local-authority/30UE,Open Spaces,,Property Services,Water Charges(Metered),2511,Water,Worden Park,06/01/2021,0000461373,"2,740.78",Revenue,WATER PLUS,0
South Ribble Borough Council,http://statistics.data.gov.uk/id/local-authority/30UE,Open Spaces,,Property Services,Water Charges(Metered),2511,Water,Worden Park,06/01/2021,0000461374,"2,848.00",Revenue,WATER PLUS,0
South Ribble Borough Council,http://statistics.data.gov.uk/id/local-authority/30UE,Open Spaces,,Property Services,Water Charges(Metered),2511,Water,worden park,06/01/2021,0000461375,"4,431.92",Revenue,WATER PLUS,0
South Ribble Borough Council,http://statistics.data.gov.uk/id/local-authority/30UE,Open Spaces,,Property Services,Water Charges(Metered),2511,Water,worden park,06/01/2021,0000461376,"3,638.44",Revenue,WATER PLUS,0
South Ribble Borough Council,http://statistics.data.gov.uk/id/local-authority/30UE,Open Spaces,,Property Services,Water Charges(Metered),2511,Water,worden park,06/01/2021,0000461377,"3,774.70",Revenue,WATER PLUS,0
South Ribble Borough Council,http://statistics.data.gov.uk/id/local-authority/30UE,Open Spaces,,Property Services,Water Charges(Metered),2511,Water,Toilet block higher walton,06/01/2021,0000461385,263.99,Revenue,WATER PLUS,0
South Ribble Borough Council,http://statistics.data.gov.uk/id/local-authority/30UE,Open Spaces,,Property Services,Water Charges(Metered),2511,Water,Toilet block higher Walton,06/01/2021,0000461388,263.99,Revenue,WATER PLUS,0
South Ribble Borough Council,http://statistics.data.gov.uk/id/local-authority/30UE,Central Support Services,,Property Services,Water Charges(Metered),2511,Water,add DCA admin fee,29/01/2021,0000462383,385.00,Revenue,WATER PLUS,0
South Ribble Borough Council,http://statistics.data.gov.uk/id/local-authority/30UE,Central Support Services,,Property Services,Water Charges(Metered),2511,Water,water,29/01/2021,0000462384,215.93,Revenue,WATER PLUS,0
South Ribble Borough Council,http://statistics.data.gov.uk/id/local-authority/30UE,Central Support Services,,Property Services,Water Charges(Metered),2511,Water,effluent,29/01/2021,0000462384,25.69,Revenue,WATER PLUS,0
South Ribble Borough Council,http://statistics.data.gov.uk/id/local-authority/30UE,Central Support Services,,Property Services,Water Charges(Metered),2511,Water,used water,29/01/2021,0000462384,"2,205.82",Revenue,WATER PLUS,0
South Ribble Borough Council,http://statistics.data.gov.uk/id/local-authority/30UE,Central Support Services,,Property Services,Water Charges(Metered),2511,Water,water,29/01/2021,0000462385,494.60,Revenue,WATER PLUS,0
South Ribble Borough Council,http://statistics.data.gov.uk/id/local-authority/30UE,Central Support Services,,Property Services,Water Charges(Metered),2511,Water,efluent,29/01/2021,0000462385,189.78,Revenue,WATER PLUS,0
South Ribble Borough Council,http://statistics.data.gov.uk/id/local-authority/30UE,Central Support Services,,Property Services,Water Charges(Metered),2511,Water,used water,29/01/2021,0000462385,"2,063.52",Revenue,WATER PLUS,0
South Ribble Borough Council,http://statistics.data.gov.uk/id/local-authority/30UE,Open Spaces,,Neighbourhood Admin & Support,GM Refurbishment,4657,Expenses,"TO SUPPLY, ERECT, LIGHT AND REMOVE CHRISTMAS TREES AT KITTLINGBORNE BROW, HIGHER WALTON - TARDY ",15/01/2021,0000460788,"8,790.08",Revenue,WESTFIELD TREE SERVICES LTD,0
South Ribble Borough Council,http://statistics.data.gov.uk/id/local-authority/30UE,Community Development,,Regeneration,Core Fund,4861,Miscellaneous Expenses,The supply and installation of festive lights to  2 x large lime trees located at St Andrews Church Longton as per the quote supplied.,13/01/2021,0000461981,"3,197.52",Revenue,WESTFIELD TREE SERVICES LTD,0
South Ribble Borough Council,http://statistics.data.gov.uk/id/local-authority/30UE,Local Tax Collection,,Revenues Plus,Stationery General,4130,Printing- Stat & Office Expens,Mail services for  Revenues and Benefits October - March 2021,20/01/2021,0000461400,265.10,Revenue,WHISTL  UK LTD,0
South Ribble Borough Council,http://statistics.data.gov.uk/id/local-authority/30UE,Local Tax Collection,,Revenues Plus,Stationery General,4130,Printing- Stat & Office Expens,Mail services for  Revenues and Benefits October - March 2021,13/01/2021,0000461983,303.26,Revenue,WHISTL  UK LTD,0
South Ribble Borough Council,http://statistics.data.gov.uk/id/local-authority/30UE,Open Spaces,,Area 3 - Parks/Leyland East West,GM Refurbishment,4657,Expenses,Flexi & Yoyo Swing Basket - 950mm - 5901-907,22/01/2021,0000462085,835.00,Revenue,WICKSTEED LEISURE LTD,0
South Ribble Borough Council,http://statistics.data.gov.uk/id/local-authority/30UE,Open Spaces,,Area 3 - Parks/Leyland East West,GM Refurbishment,4657,Expenses,2 x Yoyo swing chain 4061-156,22/01/2021,0000462085,360.00,Revenue,WICKSTEED LEISURE LTD,0
South Ribble Borough Council,http://statistics.data.gov.uk/id/local-authority/30UE,Open Spaces,,Area 3 - Parks/Leyland East West,GM Refurbishment,4657,Expenses,carriage,22/01/2021,0000462085,101.58,Revenue,WICKSTEED LEISURE LTD,0
South Ribble Borough Council,http://statistics.data.gov.uk/id/local-authority/30UE,Open Spaces,,Area 3 - Parks/Leyland East West,GM Refurbishment,4657,Expenses,"Ground investigations, Mounsey Road Open Space, Bamber Bridge.",06/01/2021,0000460497,"2,605.00",Revenue,WORMS EYE LIMITED,0
South Ribble Borough Council,http://statistics.data.gov.uk/id/local-authority/30UE,Regulatory Services,,Environmental Health,Corp Subs to Professional Bodies,4720,Grants & Subscriptions,EHL SUBSCRIPTION,15/01/2021,0000462107,250.00,Revenue,WYRE BOROUGH COUNCIL,0
